Body Name,Body,Service division categorisation,Service area categorisation,Expense Type,Date paid,Transaction Reference,Net,Supplier Name,Redacted/Excluded
East Lindsey District Council,http://statistics.data.gov.uk/id/local-authority/32UC,Theatre Manager,Embassy Centre,Professional & Contractors Fees,07/08/2014,IJ00035369,133.10,BIFFA WASTE SERVICES LTD,
East Lindsey District Council,http://statistics.data.gov.uk/id/local-authority/32UC,Leisure Operations,Swimming Pool(Coronation Wk)H/Castle,Professional & Contractors Fees,07/08/2014,IJ00035369,133.10,BIFFA WASTE SERVICES LTD,
East Lindsey District Council,http://statistics.data.gov.uk/id/local-authority/32UC,Economic & Tourism,ED: General Marketing & Promotion,Professional & Contractors Fees,07/08/2014,IJ00035369,66.55,BIFFA WASTE SERVICES LTD,
East Lindsey District Council,http://statistics.data.gov.uk/id/local-authority/32UC,Economic & Tourism,ED: General Marketing & Promotion,Professional & Contractors Fees,07/08/2014,IJ00035369,66.55,BIFFA WASTE SERVICES LTD,
East Lindsey District Council,http://statistics.data.gov.uk/id/local-authority/32UC,Leisure Operations,Station Sports Centre,Professional & Contractors Fees,07/08/2014,IJ00035369,66.55,BIFFA WASTE SERVICES LTD,
East Lindsey District Council,http://statistics.data.gov.uk/id/local-authority/32UC,Leisure Operations,London Road Sports Centre,Professional & Contractors Fees,07/08/2014,IJ00035369,66.55,BIFFA WASTE SERVICES LTD,
East Lindsey District Council,http://statistics.data.gov.uk/id/local-authority/32UC,TL Property,Public Buildings,Professional & Contractors Fees,07/08/2014,IJ00035369,66.55,BIFFA WASTE SERVICES LTD,
East Lindsey District Council,http://statistics.data.gov.uk/id/local-authority/32UC,Leisure Operations,Embassy Swimming Pool(Skegness),Professional & Contractors Fees,07/08/2014,IJ00035369,332.75,BIFFA WASTE SERVICES LTD,
East Lindsey District Council,http://statistics.data.gov.uk/id/local-authority/32UC,Theatre Manager,Town Halls - Operational Costs,Professional & Contractors Fees,07/08/2014,IJ00035369,329.50,BIFFA WASTE SERVICES LTD,
East Lindsey District Council,http://statistics.data.gov.uk/id/local-authority/32UC,Theatre Manager,Town Halls - Operational Costs,Professional & Contractors Fees,07/08/2014,IJ00035369,66.55,BIFFA WASTE SERVICES LTD,
East Lindsey District Council,http://statistics.data.gov.uk/id/local-authority/32UC,Theatre Manager,Embassy Centre,Professional & Contractors Fees,07/08/2014,IJ00035368,106.47,BIFFA WASTE SERVICES LTD,
East Lindsey District Council,http://statistics.data.gov.uk/id/local-authority/32UC,Leisure Operations,Swimming Pool(Coronation Wk)H/Castle,Professional & Contractors Fees,07/08/2014,IJ00035368,106.47,BIFFA WASTE SERVICES LTD,
East Lindsey District Council,http://statistics.data.gov.uk/id/local-authority/32UC,Economic & Tourism,ED: General Marketing & Promotion,Professional & Contractors Fees,07/08/2014,IJ00035368,53.24,BIFFA WASTE SERVICES LTD,
East Lindsey District Council,http://statistics.data.gov.uk/id/local-authority/32UC,Economic & Tourism,ED: General Marketing & Promotion,Professional & Contractors Fees,07/08/2014,IJ00035368,53.24,BIFFA WASTE SERVICES LTD,
East Lindsey District Council,http://statistics.data.gov.uk/id/local-authority/32UC,Leisure Operations,Station Sports Centre,Professional & Contractors Fees,07/08/2014,IJ00035368,53.24,BIFFA WASTE SERVICES LTD,
East Lindsey District Council,http://statistics.data.gov.uk/id/local-authority/32UC,Leisure Operations,London Road Sports Centre,Professional & Contractors Fees,07/08/2014,IJ00035368,53.24,BIFFA WASTE SERVICES LTD,
East Lindsey District Council,http://statistics.data.gov.uk/id/local-authority/32UC,TL Property,Public Buildings,Professional & Contractors Fees,07/08/2014,IJ00035368,53.24,BIFFA WASTE SERVICES LTD,
East Lindsey District Council,http://statistics.data.gov.uk/id/local-authority/32UC,Leisure Operations,Embassy Swimming Pool(Skegness),Professional & Contractors Fees,07/08/2014,IJ00035368,266.22,BIFFA WASTE SERVICES LTD,
East Lindsey District Council,http://statistics.data.gov.uk/id/local-authority/32UC,Theatre Manager,Town Halls - Operational Costs,Professional & Contractors Fees,07/08/2014,IJ00035368,263.60,BIFFA WASTE SERVICES LTD,
East Lindsey District Council,http://statistics.data.gov.uk/id/local-authority/32UC,Theatre Manager,Town Halls - Operational Costs,Professional & Contractors Fees,07/08/2014,IJ00035368,53.24,BIFFA WASTE SERVICES LTD,
East Lindsey District Council,http://statistics.data.gov.uk/id/local-authority/32UC,Leisure Operations,Embassy Swimming Pool(Skegness),Other agencies,07/08/2014,IJ00035286,3190.69,COMPETITION LINE (UK) LTD,
East Lindsey District Council,http://statistics.data.gov.uk/id/local-authority/32UC,Neighbourhood Services,Area Working South,Professional & Contractors Fees,14/08/2014,IJ00035565,590.00,SID DENNIS & SONS LTD,
East Lindsey District Council,http://statistics.data.gov.uk/id/local-authority/32UC,Neighbourhood Services,Street Cleaning,Professional & Contractors Fees,14/08/2014,IJ00035565,80.00,SID DENNIS & SONS LTD,
East Lindsey District Council,http://statistics.data.gov.uk/id/local-authority/32UC,Neighbourhood Services,Area Working North,Professional & Contractors Fees,21/08/2014,IJ00035761,480.00,SID DENNIS & SONS LTD,
East Lindsey District Council,http://statistics.data.gov.uk/id/local-authority/32UC,Neighbourhood Services,Street Cleaning,Professional & Contractors Fees,21/08/2014,IJ00035761,160.00,SID DENNIS & SONS LTD,
East Lindsey District Council,http://statistics.data.gov.uk/id/local-authority/32UC,Neighbourhood Services,Area Working South,Professional & Contractors Fees,21/08/2014,IJ00035765,880.00,SID DENNIS & SONS LTD,
East Lindsey District Council,http://statistics.data.gov.uk/id/local-authority/32UC,Neighbourhood Services,Street Cleaning,Professional & Contractors Fees,21/08/2014,IJ00035765,240.00,SID DENNIS & SONS LTD,
East Lindsey District Council,http://statistics.data.gov.uk/id/local-authority/32UC,Economic & Tourism,Caravan Park (Kingfisher) Ingoldmells,Professional & Contractors Fees,21/08/2014,IJ00035792,3350.13,SID DENNIS & SONS LTD,
East Lindsey District Council,http://statistics.data.gov.uk/id/local-authority/32UC,Theatre Manager,Embassy Centre,Performers and Entertainers Fees,14/08/2014,IJ00035589,11475.58,REDACTED PERSONAL INFORMATION,REDACTED
East Lindsey District Council,http://statistics.data.gov.uk/id/local-authority/32UC,Theatre Manager,Embassy Centre,Performers and Entertainers Fees,14/08/2014,IJ00035589,-66.00,REDACTED PERSONAL INFORMATION,REDACTED
East Lindsey District Council,http://statistics.data.gov.uk/id/local-authority/32UC,Customer Services Manager,Tourist Info Centre,Payments to Bodies in Respect of Income Collected,07/08/2014,IJ00035385,659.25,GRAYSCROFT BUS SERVICES LTD,
East Lindsey District Council,http://statistics.data.gov.uk/id/local-authority/32UC,Economic & Tourism,Caravan Park (Kingfisher) Ingoldmells,Buildings Maintenance - Responsive,07/08/2014,IJ00035426,19.06,HARLITE INSTALLATIONS LTD,
East Lindsey District Council,http://statistics.data.gov.uk/id/local-authority/32UC,Economic & Tourism,Caravan Park (Kingfisher) Ingoldmells,Buildings Maintenance - Responsive,07/08/2014,IJ00035426,24.57,HARLITE INSTALLATIONS LTD,
East Lindsey District Council,http://statistics.data.gov.uk/id/local-authority/32UC,Economic & Tourism,Caravan Park (Kingfisher) Ingoldmells,Buildings Maintenance - Responsive,07/08/2014,IJ00035426,24.57,HARLITE INSTALLATIONS LTD,
East Lindsey District Council,http://statistics.data.gov.uk/id/local-authority/32UC,Economic & Tourism,Caravan Park (Kingfisher) Ingoldmells,Buildings Maintenance - Responsive,07/08/2014,IJ00035426,18.02,HARLITE INSTALLATIONS LTD,
East Lindsey District Council,http://statistics.data.gov.uk/id/local-authority/32UC,Economic & Tourism,Caravan Park (Kingfisher) Ingoldmells,Buildings Maintenance - Responsive,07/08/2014,IJ00035426,35.84,HARLITE INSTALLATIONS LTD,
East Lindsey District Council,http://statistics.data.gov.uk/id/local-authority/32UC,Economic & Tourism,Caravan Park (Kingfisher) Ingoldmells,Buildings Maintenance - Responsive,07/08/2014,IJ00035426,-2.70,HARLITE INSTALLATIONS LTD,
East Lindsey District Council,http://statistics.data.gov.uk/id/local-authority/32UC,Economic & Tourism,Caravan Park (Kingfisher) Ingoldmells,Buildings Maintenance - Responsive,07/08/2014,IJ00035426,170.23,HARLITE INSTALLATIONS LTD,
East Lindsey District Council,http://statistics.data.gov.uk/id/local-authority/32UC,Economic & Tourism,Caravan Park (Kingfisher) Ingoldmells,Buildings Maintenance - Responsive,07/08/2014,IJ00035426,35.42,HARLITE INSTALLATIONS LTD,
East Lindsey District Council,http://statistics.data.gov.uk/id/local-authority/32UC,TL Property,Footway Lighting,Buildings Maintenance - Responsive,07/08/2014,IJ00035426,38.76,HARLITE INSTALLATIONS LTD,
East Lindsey District Council,http://statistics.data.gov.uk/id/local-authority/32UC,TL Property,Footway Lighting,Buildings Maintenance - Responsive,07/08/2014,IJ00035426,35.42,HARLITE INSTALLATIONS LTD,
East Lindsey District Council,http://statistics.data.gov.uk/id/local-authority/32UC,TL Property,Footway Lighting,Buildings Maintenance - Responsive,07/08/2014,IJ00035426,34.97,HARLITE INSTALLATIONS LTD,
East Lindsey District Council,http://statistics.data.gov.uk/id/local-authority/32UC,TL Property,Footway Lighting,Buildings Maintenance - Responsive,07/08/2014,IJ00035426,24.57,HARLITE INSTALLATIONS LTD,
East Lindsey District Council,http://statistics.data.gov.uk/id/local-authority/32UC,TL Property,Footway Lighting,Buildings Maintenance - Responsive,07/08/2014,IJ00035426,24.57,HARLITE INSTALLATIONS LTD,
East Lindsey District Council,http://statistics.data.gov.uk/id/local-authority/32UC,TL Property,Footway Lighting,Buildings Maintenance - Responsive,07/08/2014,IJ00035426,24.57,HARLITE INSTALLATIONS LTD,
East Lindsey District Council,http://statistics.data.gov.uk/id/local-authority/32UC,TL Property,Footway Lighting,Buildings Maintenance - Responsive,07/08/2014,IJ00035426,18.02,HARLITE INSTALLATIONS LTD,
East Lindsey District Council,http://statistics.data.gov.uk/id/local-authority/32UC,TL Property,Footway Lighting,Buildings Maintenance - Responsive,07/08/2014,IJ00035426,24.57,HARLITE INSTALLATIONS LTD,
East Lindsey District Council,http://statistics.data.gov.uk/id/local-authority/32UC,TL Property,Footway Lighting,Buildings Maintenance - Responsive,07/08/2014,IJ00035426,19.06,HARLITE INSTALLATIONS LTD,
East Lindsey District Council,http://statistics.data.gov.uk/id/local-authority/32UC,TL Property,Footway Lighting,Buildings Maintenance - Responsive,07/08/2014,IJ00035426,35.43,HARLITE INSTALLATIONS LTD,
East Lindsey District Council,http://statistics.data.gov.uk/id/local-authority/32UC,TL Property,Footway Lighting,Buildings Maintenance - Responsive,07/08/2014,IJ00035426,24.57,HARLITE INSTALLATIONS LTD,
East Lindsey District Council,http://statistics.data.gov.uk/id/local-authority/32UC,TL Property,Footway Lighting,Buildings Maintenance - Responsive,07/08/2014,IJ00035426,35.42,HARLITE INSTALLATIONS LTD,
East Lindsey District Council,http://statistics.data.gov.uk/id/local-authority/32UC,TL Property,Footway Lighting,Buildings Maintenance - Responsive,07/08/2014,IJ00035426,25.61,HARLITE INSTALLATIONS LTD,
East Lindsey District Council,http://statistics.data.gov.uk/id/local-authority/32UC,TL Property,Footway Lighting,Buildings Maintenance - Responsive,07/08/2014,IJ00035426,44.02,HARLITE INSTALLATIONS LTD,
East Lindsey District Council,http://statistics.data.gov.uk/id/local-authority/32UC,TL Property,Footway Lighting,Buildings Maintenance - Responsive,07/08/2014,IJ00035426,35.42,HARLITE INSTALLATIONS LTD,
East Lindsey District Council,http://statistics.data.gov.uk/id/local-authority/32UC,TL Property,Footway Lighting,Buildings Maintenance - Responsive,07/08/2014,IJ00035426,38.76,HARLITE INSTALLATIONS LTD,
East Lindsey District Council,http://statistics.data.gov.uk/id/local-authority/32UC,TL Property,Footway Lighting,Buildings Maintenance - Responsive,07/08/2014,IJ00035426,64.20,HARLITE INSTALLATIONS LTD,
East Lindsey District Council,http://statistics.data.gov.uk/id/local-authority/32UC,TL Property,Footway Lighting,Buildings Maintenance - Responsive,07/08/2014,IJ00035426,18.02,HARLITE INSTALLATIONS LTD,
East Lindsey District Council,http://statistics.data.gov.uk/id/local-authority/32UC,TL Property,Footway Lighting,Buildings Maintenance - Responsive,07/08/2014,IJ00035426,46.17,HARLITE INSTALLATIONS LTD,
East Lindsey District Council,http://statistics.data.gov.uk/id/local-authority/32UC,TL Property,Footway Lighting,Buildings Maintenance - Responsive,07/08/2014,IJ00035426,46.17,HARLITE INSTALLATIONS LTD,
East Lindsey District Council,http://statistics.data.gov.uk/id/local-authority/32UC,TL Property,Footway Lighting,Buildings Maintenance - Responsive,07/08/2014,IJ00035426,38.76,HARLITE INSTALLATIONS LTD,
East Lindsey District Council,http://statistics.data.gov.uk/id/local-authority/32UC,TL Property,Footway Lighting,Buildings Maintenance - Responsive,07/08/2014,IJ00035426,61.42,HARLITE INSTALLATIONS LTD,
East Lindsey District Council,http://statistics.data.gov.uk/id/local-authority/32UC,TL Property,Footway Lighting,Buildings Maintenance - Responsive,07/08/2014,IJ00035426,18.02,HARLITE INSTALLATIONS LTD,
East Lindsey District Council,http://statistics.data.gov.uk/id/local-authority/32UC,TL Property,Footway Lighting,Buildings Maintenance - Responsive,07/08/2014,IJ00035426,-2.70,HARLITE INSTALLATIONS LTD,
East Lindsey District Council,http://statistics.data.gov.uk/id/local-authority/32UC,Neighbourhood Services,Community Parks & Open Spaces - Neighbourhood Services,Buildings Maintenance - Responsive,07/08/2014,IJ00035426,60.58,HARLITE INSTALLATIONS LTD,
East Lindsey District Council,http://statistics.data.gov.uk/id/local-authority/32UC,Neighbourhood Services,Community Parks & Open Spaces - Neighbourhood Services,Buildings Maintenance - Responsive,07/08/2014,IJ00035426,18.02,HARLITE INSTALLATIONS LTD,
East Lindsey District Council,http://statistics.data.gov.uk/id/local-authority/32UC,Neighbourhood Services,Community Parks & Open Spaces - Neighbourhood Services,Buildings Maintenance - Responsive,07/08/2014,IJ00035426,42.73,HARLITE INSTALLATIONS LTD,
East Lindsey District Council,http://statistics.data.gov.uk/id/local-authority/32UC,Neighbourhood Services,Community Parks & Open Spaces - Neighbourhood Services,Buildings Maintenance - Responsive,07/08/2014,IJ00035426,18.02,HARLITE INSTALLATIONS LTD,
East Lindsey District Council,http://statistics.data.gov.uk/id/local-authority/32UC,Neighbourhood Services,Community Parks & Open Spaces - Neighbourhood Services,Buildings Maintenance - Responsive,07/08/2014,IJ00035426,18.02,HARLITE INSTALLATIONS LTD,
East Lindsey District Council,http://statistics.data.gov.uk/id/local-authority/32UC,Neighbourhood Services,Community Parks & Open Spaces - Neighbourhood Services,Buildings Maintenance - Responsive,07/08/2014,IJ00035426,18.02,HARLITE INSTALLATIONS LTD,
East Lindsey District Council,http://statistics.data.gov.uk/id/local-authority/32UC,Neighbourhood Services,Community Parks & Open Spaces - Neighbourhood Services,Buildings Maintenance - Responsive,07/08/2014,IJ00035426,19.06,HARLITE INSTALLATIONS LTD,
East Lindsey District Council,http://statistics.data.gov.uk/id/local-authority/32UC,TL Property,Public Buildings,Buildings Maintenance - Responsive,07/08/2014,IJ00035426,257.00,HARLITE INSTALLATIONS LTD,
East Lindsey District Council,http://statistics.data.gov.uk/id/local-authority/32UC,Enforcement Team Leader,Car Parks General,Buildings Maintenance - Responsive,07/08/2014,IJ00035426,54.58,HARLITE INSTALLATIONS LTD,
East Lindsey District Council,http://statistics.data.gov.uk/id/local-authority/32UC,Neighbourhood Services,Community Parks & Open Spaces - Neighbourhood Services,Buildings Maintenance - Programmed,07/08/2014,IJ00035426,2167.51,HARLITE INSTALLATIONS LTD,
East Lindsey District Council,http://statistics.data.gov.uk/id/local-authority/32UC,Enforcement Team Leader,Car Parks General,Buildings Maintenance - Responsive,07/08/2014,IJ00035426,42.73,HARLITE INSTALLATIONS LTD,
East Lindsey District Council,http://statistics.data.gov.uk/id/local-authority/32UC,Enforcement Team Leader,Car Parks General,Buildings Maintenance - Responsive,07/08/2014,IJ00035426,42.32,HARLITE INSTALLATIONS LTD,
East Lindsey District Council,http://statistics.data.gov.uk/id/local-authority/32UC,TL Property,Illuminations,Other Miscellaneous Expenses,07/08/2014,IJ00035426,18.02,HARLITE INSTALLATIONS LTD,
East Lindsey District Council,http://statistics.data.gov.uk/id/local-authority/32UC,TL Property,Illuminations,Other Miscellaneous Expenses,07/08/2014,IJ00035426,79.06,HARLITE INSTALLATIONS LTD,
East Lindsey District Council,http://statistics.data.gov.uk/id/local-authority/32UC,Economic & Tourism,Caravan Park (Kingfisher) Ingoldmells,Buildings Maintenance - Responsive,21/08/2014,IJ00035822,24.57,HARLITE INSTALLATIONS LTD,
East Lindsey District Council,http://statistics.data.gov.uk/id/local-authority/32UC,Economic & Tourism,Caravan Park (Kingfisher) Ingoldmells,Buildings Maintenance - Responsive,21/08/2014,IJ00035822,35.84,HARLITE INSTALLATIONS LTD,
East Lindsey District Council,http://statistics.data.gov.uk/id/local-authority/32UC,Economic & Tourism,Caravan Park (Kingfisher) Ingoldmells,Buildings Maintenance - Responsive,21/08/2014,IJ00035822,485.95,HARLITE INSTALLATIONS LTD,
East Lindsey District Council,http://statistics.data.gov.uk/id/local-authority/32UC,TL Property,Footway Lighting,Buildings Maintenance - Responsive,21/08/2014,IJ00035822,24.57,HARLITE INSTALLATIONS LTD,
East Lindsey District Council,http://statistics.data.gov.uk/id/local-authority/32UC,TL Property,Footway Lighting,Buildings Maintenance - Responsive,21/08/2014,IJ00035822,18.02,HARLITE INSTALLATIONS LTD,
East Lindsey District Council,http://statistics.data.gov.uk/id/local-authority/32UC,TL Property,Footway Lighting,Buildings Maintenance - Responsive,21/08/2014,IJ00035822,24.57,HARLITE INSTALLATIONS LTD,
East Lindsey District Council,http://statistics.data.gov.uk/id/local-authority/32UC,TL Property,Footway Lighting,Buildings Maintenance - Responsive,21/08/2014,IJ00035822,38.12,HARLITE INSTALLATIONS LTD,
East Lindsey District Council,http://statistics.data.gov.uk/id/local-authority/32UC,TL Property,Footway Lighting,Buildings Maintenance - Responsive,21/08/2014,IJ00035822,24.57,HARLITE INSTALLATIONS LTD,
East Lindsey District Council,http://statistics.data.gov.uk/id/local-authority/32UC,TL Property,Footway Lighting,Buildings Maintenance - Responsive,21/08/2014,IJ00035822,18.02,HARLITE INSTALLATIONS LTD,
East Lindsey District Council,http://statistics.data.gov.uk/id/local-authority/32UC,TL Property,Footway Lighting,Buildings Maintenance - Responsive,21/08/2014,IJ00035822,18.02,HARLITE INSTALLATIONS LTD,
East Lindsey District Council,http://statistics.data.gov.uk/id/local-authority/32UC,TL Property,Footway Lighting,Buildings Maintenance - Responsive,21/08/2014,IJ00035822,35.42,HARLITE INSTALLATIONS LTD,
East Lindsey District Council,http://statistics.data.gov.uk/id/local-authority/32UC,TL Property,Footway Lighting,Buildings Maintenance - Responsive,21/08/2014,IJ00035822,18.02,HARLITE INSTALLATIONS LTD,
East Lindsey District Council,http://statistics.data.gov.uk/id/local-authority/32UC,TL Property,Footway Lighting,Buildings Maintenance - Responsive,21/08/2014,IJ00035822,18.02,HARLITE INSTALLATIONS LTD,
East Lindsey District Council,http://statistics.data.gov.uk/id/local-authority/32UC,TL Property,Footway Lighting,Buildings Maintenance - Responsive,21/08/2014,IJ00035822,35.42,HARLITE INSTALLATIONS LTD,
East Lindsey District Council,http://statistics.data.gov.uk/id/local-authority/32UC,TL Property,Footway Lighting,Buildings Maintenance - Responsive,21/08/2014,IJ00035822,20.10,HARLITE INSTALLATIONS LTD,
East Lindsey District Council,http://statistics.data.gov.uk/id/local-authority/32UC,TL Property,Footway Lighting,Buildings Maintenance - Responsive,21/08/2014,IJ00035822,35.42,HARLITE INSTALLATIONS LTD,
East Lindsey District Council,http://statistics.data.gov.uk/id/local-authority/32UC,TL Property,Footway Lighting,Buildings Maintenance - Responsive,21/08/2014,IJ00035822,35.42,HARLITE INSTALLATIONS LTD,
East Lindsey District Council,http://statistics.data.gov.uk/id/local-authority/32UC,TL Property,Footway Lighting,Buildings Maintenance - Responsive,21/08/2014,IJ00035822,24.57,HARLITE INSTALLATIONS LTD,
East Lindsey District Council,http://statistics.data.gov.uk/id/local-authority/32UC,TL Property,Footway Lighting,Buildings Maintenance - Responsive,21/08/2014,IJ00035822,35.42,HARLITE INSTALLATIONS LTD,
East Lindsey District Council,http://statistics.data.gov.uk/id/local-authority/32UC,TL Property,Footway Lighting,Buildings Maintenance - Responsive,21/08/2014,IJ00035822,61.42,HARLITE INSTALLATIONS LTD,
East Lindsey District Council,http://statistics.data.gov.uk/id/local-authority/32UC,TL Property,Footway Lighting,Buildings Maintenance - Responsive,21/08/2014,IJ00035822,18.02,HARLITE INSTALLATIONS LTD,
East Lindsey District Council,http://statistics.data.gov.uk/id/local-authority/32UC,TL Property,Footway Lighting,Buildings Maintenance - Responsive,21/08/2014,IJ00035822,24.57,HARLITE INSTALLATIONS LTD,
East Lindsey District Council,http://statistics.data.gov.uk/id/local-authority/32UC,TL Property,Footway Lighting,Buildings Maintenance - Responsive,21/08/2014,IJ00035822,20.10,HARLITE INSTALLATIONS LTD,
East Lindsey District Council,http://statistics.data.gov.uk/id/local-authority/32UC,TL Property,Footway Lighting,Buildings Maintenance - Responsive,21/08/2014,IJ00035822,24.57,HARLITE INSTALLATIONS LTD,
East Lindsey District Council,http://statistics.data.gov.uk/id/local-authority/32UC,TL Property,Footway Lighting,Buildings Maintenance - Responsive,21/08/2014,IJ00035822,24.57,HARLITE INSTALLATIONS LTD,
East Lindsey District Council,http://statistics.data.gov.uk/id/local-authority/32UC,TL Property,Footway Lighting,Buildings Maintenance - Responsive,21/08/2014,IJ00035822,38.83,HARLITE INSTALLATIONS LTD,
East Lindsey District Council,http://statistics.data.gov.uk/id/local-authority/32UC,Enforcement Team Leader,Car Parks General,Buildings Maintenance - Responsive,21/08/2014,IJ00035822,170.23,HARLITE INSTALLATIONS LTD,
East Lindsey District Council,http://statistics.data.gov.uk/id/local-authority/32UC,Enforcement Team Leader,Car Parks General,Buildings Maintenance - Responsive,21/08/2014,IJ00035822,42.32,HARLITE INSTALLATIONS LTD,
East Lindsey District Council,http://statistics.data.gov.uk/id/local-authority/32UC,Leisure Operations,Embassy Swimming Pool(Skegness),Furniture and Equipment,07/08/2014,IJ00035395,698.33,J P LENNARD LTD,
East Lindsey District Council,http://statistics.data.gov.uk/id/local-authority/32UC,Economic & Tourism,ED: General Marketing & Promotion,Buildings Maintenance - Responsive,21/08/2014,IJ00035624,1070.68,FRED MARGARSON LTD.,
East Lindsey District Council,http://statistics.data.gov.uk/id/local-authority/32UC,Leisure Operations,Station Sports Centre,Buildings Maintenance - Programmed,21/08/2014,IJ00035626,510.00,FRED MARGARSON LTD.,
East Lindsey District Council,http://statistics.data.gov.uk/id/local-authority/32UC,Hsg Private Sector TL,Private Sector Housing Renovation Grants,Other Income,21/08/2014,IJ00035825,-446.39,SIBJON BUILDERS,
East Lindsey District Council,http://statistics.data.gov.uk/id/local-authority/32UC,Hsg Private Sector TL,Private Sector Housing Renovation Grants,Grants and Contributions to Outside Bodies- No Service Recei,21/08/2014,IJ00035825,4999.54,SIBJON BUILDERS,
East Lindsey District Council,http://statistics.data.gov.uk/id/local-authority/32UC,Neighbourhood Services,Community Parks & Open Spaces - Neighbourhood Services,Materials and Consumables,14/08/2014,IJ00035519,681.00,STOWLIN LTD,
East Lindsey District Council,http://statistics.data.gov.uk/id/local-authority/32UC,Neighbourhood Services,Community Parks & Open Spaces - Neighbourhood Services,Materials and Consumables,14/08/2014,IJ00035520,681.00,STOWLIN LTD,
East Lindsey District Council,http://statistics.data.gov.uk/id/local-authority/32UC,Neighbourhood Services,Community Parks & Open Spaces - Neighbourhood Services,Materials and Consumables,21/08/2014,IJ00035737,844.60,STOWLIN LTD,
East Lindsey District Council,http://statistics.data.gov.uk/id/local-authority/32UC,Leisure Operations,Swimming Pool(Coronation Wk)H/Castle,Cleaning Contract,28/08/2014,IJ00035954,601.32,STOWLIN LTD,
East Lindsey District Council,http://statistics.data.gov.uk/id/local-authority/32UC,Theatre Manager,Embassy Centre,Performers and Entertainers Fees,21/08/2014,IJ00035813,2624.74,JANICE SUTTON,
East Lindsey District Council,http://statistics.data.gov.uk/id/local-authority/32UC,Theatre Manager,Embassy Centre,Performers and Entertainers Fees,28/08/2014,IJ00035990,2489.35,JANICE SUTTON,
East Lindsey District Council,http://statistics.data.gov.uk/id/local-authority/32UC,Theatre Manager,Embassy Centre,Performers and Entertainers Fees,28/08/2014,IJ00035990,-1010.81,JANICE SUTTON,
East Lindsey District Council,http://statistics.data.gov.uk/id/local-authority/32UC,Theatre Manager,Embassy Centre,Banking Charges,21/08/2014,IJ00035840,650.55,BARCLAYS MERCHANT SERVICES,
East Lindsey District Council,http://statistics.data.gov.uk/id/local-authority/32UC,Theatre Manager,Embassy Centre,Banking Charges,21/08/2014,IJ00035840,5.80,BARCLAYS MERCHANT SERVICES,
East Lindsey District Council,http://statistics.data.gov.uk/id/local-authority/32UC,"Performance, Governance & Commissioning",Commissioning & Grants,Grants and Contributions to Outside Bodies- No Service Recei,28/08/2014,IJ00035902,800.00,GRIMOLDBY & MANBY PARISH COUNCIL,
East Lindsey District Council,http://statistics.data.gov.uk/id/local-authority/32UC,Collection Fund,Collection Fund,Precept - Lincolnshire Police,07/08/2014,IJ00035445,789708.10,LOCAL POLICE AUTHORITY FUND ACCOUNT,
East Lindsey District Council,http://statistics.data.gov.uk/id/local-authority/32UC,Economic & Tourism,Tourism,Other Miscellaneous Expenses,07/08/2014,IJ00035362,1820.00,LINCS FM PLC,
East Lindsey District Council,http://statistics.data.gov.uk/id/local-authority/32UC,Theatre Manager,Embassy Centre,Performers and Entertainers Fees,28/08/2014,IJ00035984,5822.26,ALAN FIELD ASSOCIATES LIMITED,
East Lindsey District Council,http://statistics.data.gov.uk/id/local-authority/32UC,Theatre Manager,Embassy Centre,Performers and Entertainers Fees,28/08/2014,IJ00035984,-210.00,ALAN FIELD ASSOCIATES LIMITED,
East Lindsey District Council,http://statistics.data.gov.uk/id/local-authority/32UC,Waste Services Manager,Household & Trade Refuse Coll. General,Telephones,14/08/2014,IJ00035592,126.96,VODAFONE CORPORATE LIMITED,
East Lindsey District Council,http://statistics.data.gov.uk/id/local-authority/32UC,Communications Manager,Public Relations,Telephones,14/08/2014,IJ00035592,49.04,VODAFONE CORPORATE LIMITED,
East Lindsey District Council,http://statistics.data.gov.uk/id/local-authority/32UC,Theatre Manager,Embassy Centre,Telephones,14/08/2014,IJ00035592,69.93,VODAFONE CORPORATE LIMITED,
East Lindsey District Council,http://statistics.data.gov.uk/id/local-authority/32UC,Theatre Manager,Embassy Centre,Telephones,14/08/2014,IJ00035592,3.24,VODAFONE CORPORATE LIMITED,
East Lindsey District Council,http://statistics.data.gov.uk/id/local-authority/32UC,Development Control,Development Control,Telephones,14/08/2014,IJ00035592,13.04,VODAFONE CORPORATE LIMITED,
East Lindsey District Council,http://statistics.data.gov.uk/id/local-authority/32UC,Enforcement Team Leader,Planning Enforcement,Telephones,14/08/2014,IJ00035592,65.51,VODAFONE CORPORATE LIMITED,
East Lindsey District Council,http://statistics.data.gov.uk/id/local-authority/32UC,Enforcement Team Leader,Waste Enforcement Officers,Telephones,14/08/2014,IJ00035592,45.29,VODAFONE CORPORATE LIMITED,
East Lindsey District Council,http://statistics.data.gov.uk/id/local-authority/32UC,Building Control,Dangerous Buildings,Telephones,14/08/2014,IJ00035592,12.94,VODAFONE CORPORATE LIMITED,
East Lindsey District Council,http://statistics.data.gov.uk/id/local-authority/32UC,Hsg Private Sector TL,Houses in Multiple Occupation,Telephones,14/08/2014,IJ00035592,37.32,VODAFONE CORPORATE LIMITED,
East Lindsey District Council,http://statistics.data.gov.uk/id/local-authority/32UC,Enforcement Team Leader,Car Parks General,Telephones,14/08/2014,IJ00035592,266.09,VODAFONE CORPORATE LIMITED,
East Lindsey District Council,http://statistics.data.gov.uk/id/local-authority/32UC,Cultural & Related Services,Cultural Activities,Telephones,14/08/2014,IJ00035592,32.21,VODAFONE CORPORATE LIMITED,
East Lindsey District Council,http://statistics.data.gov.uk/id/local-authority/32UC,Hsg Advice & Homelessness TL,Enabling Activities Housing Advice,Telephones,14/08/2014,IJ00035592,21.19,VODAFONE CORPORATE LIMITED,
East Lindsey District Council,http://statistics.data.gov.uk/id/local-authority/32UC,Hsg Private Sector TL,Private Sector Housing Renovation Grants,Telephones,14/08/2014,IJ00035592,61.70,VODAFONE CORPORATE LIMITED,
East Lindsey District Council,http://statistics.data.gov.uk/id/local-authority/32UC,Hsg Advice & Homelessness TL,Homelessness,Telephones,14/08/2014,IJ00035592,88.25,VODAFONE CORPORATE LIMITED,
East Lindsey District Council,http://statistics.data.gov.uk/id/local-authority/32UC,Waste Services Manager,Markets General,Telephones,14/08/2014,IJ00035592,53.05,VODAFONE CORPORATE LIMITED,
East Lindsey District Council,http://statistics.data.gov.uk/id/local-authority/32UC,Building Control,Building Control - chargeable,Telephones,14/08/2014,IJ00035592,188.15,VODAFONE CORPORATE LIMITED,
East Lindsey District Council,http://statistics.data.gov.uk/id/local-authority/32UC,Economic & Tourism,Caravan Park (Kingfisher) Ingoldmells,Telephones,14/08/2014,IJ00035592,2.81,VODAFONE CORPORATE LIMITED,
East Lindsey District Council,http://statistics.data.gov.uk/id/local-authority/32UC,Corporate Management,Corporate Management,Telephones,14/08/2014,IJ00035592,59.87,VODAFONE CORPORATE LIMITED,
East Lindsey District Council,http://statistics.data.gov.uk/id/local-authority/32UC,Leisure Operations,Meridian Leisure Centre,Telephones,14/08/2014,IJ00035592,10.51,VODAFONE CORPORATE LIMITED,
East Lindsey District Council,http://statistics.data.gov.uk/id/local-authority/32UC,Leisure Operations,London Road Sports Centre,Telephones,14/08/2014,IJ00035592,4.37,VODAFONE CORPORATE LIMITED,
East Lindsey District Council,http://statistics.data.gov.uk/id/local-authority/32UC,Leisure Operations,Station Sports Centre,Telephones,14/08/2014,IJ00035592,63.23,VODAFONE CORPORATE LIMITED,
East Lindsey District Council,http://statistics.data.gov.uk/id/local-authority/32UC,Leisure Operations,Leisure Management General,Telephones,14/08/2014,IJ00035592,13.48,VODAFONE CORPORATE LIMITED,
East Lindsey District Council,http://statistics.data.gov.uk/id/local-authority/32UC,Neighbourhood Services,Area Working North,Telephones,14/08/2014,IJ00035592,192.94,VODAFONE CORPORATE LIMITED,
East Lindsey District Council,http://statistics.data.gov.uk/id/local-authority/32UC,Neighbourhood Services,Arboriculture,Telephones,14/08/2014,IJ00035592,10.64,VODAFONE CORPORATE LIMITED,
East Lindsey District Council,http://statistics.data.gov.uk/id/local-authority/32UC,TL Property,Property Management,Telephones,14/08/2014,IJ00035592,90.81,VODAFONE CORPORATE LIMITED,
East Lindsey District Council,http://statistics.data.gov.uk/id/local-authority/32UC,Neighbourhood Services,Neighbourhood Management,Telephones,14/08/2014,IJ00035592,32.44,VODAFONE CORPORATE LIMITED,
East Lindsey District Council,http://statistics.data.gov.uk/id/local-authority/32UC,Economic & Tourism,Tourism,Telephones,14/08/2014,IJ00035592,32.35,VODAFONE CORPORATE LIMITED,
East Lindsey District Council,http://statistics.data.gov.uk/id/local-authority/32UC,"Performance, Governance & Commissioning",Member Services,Telephones,14/08/2014,IJ00035592,158.48,VODAFONE CORPORATE LIMITED,
East Lindsey District Council,http://statistics.data.gov.uk/id/local-authority/32UC,Enforcement Team Leader,Car Parks General,Telephones,14/08/2014,IJ00035592,6.75,VODAFONE CORPORATE LIMITED,
East Lindsey District Council,http://statistics.data.gov.uk/id/local-authority/32UC,Environment Team Leader,Environmental Protection,Telephones,14/08/2014,IJ00035592,146.07,VODAFONE CORPORATE LIMITED,
East Lindsey District Council,http://statistics.data.gov.uk/id/local-authority/32UC,Cultural & Related Services,Health Improvement,Telephones,14/08/2014,IJ00035592,45.43,VODAFONE CORPORATE LIMITED,
East Lindsey District Council,http://statistics.data.gov.uk/id/local-authority/32UC,Cultural & Related Services,Health Improvement,Telephones,14/08/2014,IJ00035592,15.80,VODAFONE CORPORATE LIMITED,
East Lindsey District Council,http://statistics.data.gov.uk/id/local-authority/32UC,Cultural & Related Services,Health Improvement,Telephones,14/08/2014,IJ00035592,24.31,VODAFONE CORPORATE LIMITED,
East Lindsey District Council,http://statistics.data.gov.uk/id/local-authority/32UC,Cultural & Related Services,Health Improvement,Telephones,14/08/2014,IJ00035592,4.14,VODAFONE CORPORATE LIMITED,
East Lindsey District Council,http://statistics.data.gov.uk/id/local-authority/32UC,Hsg Private Sector TL,Community Safety/CCTV,Telephones,14/08/2014,IJ00035592,66.97,VODAFONE CORPORATE LIMITED,
East Lindsey District Council,http://statistics.data.gov.uk/id/local-authority/32UC,"Performance, Governance & Commissioning",Performance & Partnerships,Telephones,14/08/2014,IJ00035592,12.85,VODAFONE CORPORATE LIMITED,
East Lindsey District Council,http://statistics.data.gov.uk/id/local-authority/32UC,Planning & Housing Policy Manager,Policy & Implementation,Telephones,14/08/2014,IJ00035592,30.84,VODAFONE CORPORATE LIMITED,
East Lindsey District Council,http://statistics.data.gov.uk/id/local-authority/32UC,Economic & Tourism,ED: General Marketing & Promotion,Telephones,14/08/2014,IJ00035592,96.97,VODAFONE CORPORATE LIMITED,
East Lindsey District Council,http://statistics.data.gov.uk/id/local-authority/32UC,Economic & Tourism,ED: General Marketing & Promotion,Telephones,14/08/2014,IJ00035592,2.81,VODAFONE CORPORATE LIMITED,
East Lindsey District Council,http://statistics.data.gov.uk/id/local-authority/32UC,Cultural & Related Services,Sports Development,Telephones,14/08/2014,IJ00035592,155.29,VODAFONE CORPORATE LIMITED,
East Lindsey District Council,http://statistics.data.gov.uk/id/local-authority/32UC,Cultural & Related Services,Sports Development,Telephones,14/08/2014,IJ00035592,5.62,VODAFONE CORPORATE LIMITED,
East Lindsey District Council,http://statistics.data.gov.uk/id/local-authority/32UC,Neighbourhood Services,Street Scene Improvement & Development,Telephones,14/08/2014,IJ00035592,52.46,VODAFONE CORPORATE LIMITED,
East Lindsey District Council,http://statistics.data.gov.uk/id/local-authority/32UC,Neighbourhood Services,Street Scene Improvement & Development,Telephones,14/08/2014,IJ00035592,30.41,VODAFONE CORPORATE LIMITED,
East Lindsey District Council,http://statistics.data.gov.uk/id/local-authority/32UC,Neighbourhood Services,Area Working South,Telephones,14/08/2014,IJ00035592,212.12,VODAFONE CORPORATE LIMITED,
East Lindsey District Council,http://statistics.data.gov.uk/id/local-authority/32UC,Theatre Manager,Community Parks & Open Spaces - Theatre,Telephones,14/08/2014,IJ00035592,2.81,VODAFONE CORPORATE LIMITED,
East Lindsey District Council,http://statistics.data.gov.uk/id/local-authority/32UC,Corporate Management,Corporate Management,Telephones,14/08/2014,IJ00035592,10.04,VODAFONE CORPORATE LIMITED,
East Lindsey District Council,http://statistics.data.gov.uk/id/local-authority/32UC,Enforcement Team Leader,Bus & Coach Stations,Telephones,14/08/2014,IJ00035592,13.50,VODAFONE CORPORATE LIMITED,
East Lindsey District Council,http://statistics.data.gov.uk/id/local-authority/32UC,Enforcement Team Leader,Car Parks General,Telephones,14/08/2014,IJ00035592,6.75,VODAFONE CORPORATE LIMITED,
East Lindsey District Council,http://statistics.data.gov.uk/id/local-authority/32UC,Enforcement Team Leader,Car Parks General,Telephones,14/08/2014,IJ00035592,6.75,VODAFONE CORPORATE LIMITED,
East Lindsey District Council,http://statistics.data.gov.uk/id/local-authority/32UC,Enforcement Team Leader,Car Parks General,Telephones,14/08/2014,IJ00035592,33.75,VODAFONE CORPORATE LIMITED,
East Lindsey District Council,http://statistics.data.gov.uk/id/local-authority/32UC,Enforcement Team Leader,Car Parks General,Telephones,14/08/2014,IJ00035592,6.75,VODAFONE CORPORATE LIMITED,
East Lindsey District Council,http://statistics.data.gov.uk/id/local-authority/32UC,Enforcement Team Leader,Car Parks General,Telephones,14/08/2014,IJ00035592,6.75,VODAFONE CORPORATE LIMITED,
East Lindsey District Council,http://statistics.data.gov.uk/id/local-authority/32UC,Enforcement Team Leader,Car Parks General,Telephones,14/08/2014,IJ00035592,20.25,VODAFONE CORPORATE LIMITED,
East Lindsey District Council,http://statistics.data.gov.uk/id/local-authority/32UC,Enforcement Team Leader,Car Parks General,Telephones,14/08/2014,IJ00035592,6.75,VODAFONE CORPORATE LIMITED,
East Lindsey District Council,http://statistics.data.gov.uk/id/local-authority/32UC,Enforcement Team Leader,Car Parks General,Telephones,14/08/2014,IJ00035592,13.50,VODAFONE CORPORATE LIMITED,
East Lindsey District Council,http://statistics.data.gov.uk/id/local-authority/32UC,Enforcement Team Leader,Car Parks General,Telephones,14/08/2014,IJ00035592,6.75,VODAFONE CORPORATE LIMITED,
East Lindsey District Council,http://statistics.data.gov.uk/id/local-authority/32UC,Enforcement Team Leader,Car Parks General,Telephones,14/08/2014,IJ00035592,6.75,VODAFONE CORPORATE LIMITED,
East Lindsey District Council,http://statistics.data.gov.uk/id/local-authority/32UC,Enforcement Team Leader,Car Parks General,Telephones,14/08/2014,IJ00035592,6.75,VODAFONE CORPORATE LIMITED,
East Lindsey District Council,http://statistics.data.gov.uk/id/local-authority/32UC,Enforcement Team Leader,Car Parks General,Telephones,14/08/2014,IJ00035592,6.75,VODAFONE CORPORATE LIMITED,
East Lindsey District Council,http://statistics.data.gov.uk/id/local-authority/32UC,Enforcement Team Leader,Car Parks General,Telephones,14/08/2014,IJ00035592,13.50,VODAFONE CORPORATE LIMITED,
East Lindsey District Council,http://statistics.data.gov.uk/id/local-authority/32UC,Enforcement Team Leader,Car Parks General,Telephones,14/08/2014,IJ00035592,6.75,VODAFONE CORPORATE LIMITED,
East Lindsey District Council,http://statistics.data.gov.uk/id/local-authority/32UC,Enforcement Team Leader,Car Parks General,Telephones,14/08/2014,IJ00035592,6.75,VODAFONE CORPORATE LIMITED,
East Lindsey District Council,http://statistics.data.gov.uk/id/local-authority/32UC,Enforcement Team Leader,Car Parks General,Telephones,14/08/2014,IJ00035592,6.75,VODAFONE CORPORATE LIMITED,
East Lindsey District Council,http://statistics.data.gov.uk/id/local-authority/32UC,Enforcement Team Leader,Car Parks General,Telephones,14/08/2014,IJ00035592,6.75,VODAFONE CORPORATE LIMITED,
East Lindsey District Council,http://statistics.data.gov.uk/id/local-authority/32UC,Enforcement Team Leader,Car Parks General,Telephones,14/08/2014,IJ00035592,13.50,VODAFONE CORPORATE LIMITED,
East Lindsey District Council,http://statistics.data.gov.uk/id/local-authority/32UC,Enforcement Team Leader,Car Parks General,Telephones,14/08/2014,IJ00035592,13.50,VODAFONE CORPORATE LIMITED,
East Lindsey District Council,http://statistics.data.gov.uk/id/local-authority/32UC,Enforcement Team Leader,Car Parks General,Telephones,14/08/2014,IJ00035592,6.75,VODAFONE CORPORATE LIMITED,
East Lindsey District Council,http://statistics.data.gov.uk/id/local-authority/32UC,Enforcement Team Leader,Car Parks General,Telephones,14/08/2014,IJ00035592,6.75,VODAFONE CORPORATE LIMITED,
East Lindsey District Council,http://statistics.data.gov.uk/id/local-authority/32UC,Enforcement Team Leader,Car Parks General,Telephones,14/08/2014,IJ00035592,20.25,VODAFONE CORPORATE LIMITED,
East Lindsey District Council,http://statistics.data.gov.uk/id/local-authority/32UC,Enforcement Team Leader,Car Parks General,Telephones,14/08/2014,IJ00035592,13.50,VODAFONE CORPORATE LIMITED,
East Lindsey District Council,http://statistics.data.gov.uk/id/local-authority/32UC,Enforcement Team Leader,Car Parks General,Telephones,14/08/2014,IJ00035592,6.75,VODAFONE CORPORATE LIMITED,
East Lindsey District Council,http://statistics.data.gov.uk/id/local-authority/32UC,Enforcement Team Leader,Car Parks General,Telephones,14/08/2014,IJ00035592,13.50,VODAFONE CORPORATE LIMITED,
East Lindsey District Council,http://statistics.data.gov.uk/id/local-authority/32UC,Enforcement Team Leader,Car Parks General,Telephones,14/08/2014,IJ00035592,13.50,VODAFONE CORPORATE LIMITED,
East Lindsey District Council,http://statistics.data.gov.uk/id/local-authority/32UC,Enforcement Team Leader,Car Parks General,Telephones,14/08/2014,IJ00035592,6.75,VODAFONE CORPORATE LIMITED,
East Lindsey District Council,http://statistics.data.gov.uk/id/local-authority/32UC,Enforcement Team Leader,Car Parks General,Telephones,14/08/2014,IJ00035592,20.25,VODAFONE CORPORATE LIMITED,
East Lindsey District Council,http://statistics.data.gov.uk/id/local-authority/32UC,Enforcement Team Leader,Car Parks General,Telephones,14/08/2014,IJ00035592,6.75,VODAFONE CORPORATE LIMITED,
East Lindsey District Council,http://statistics.data.gov.uk/id/local-authority/32UC,Enforcement Team Leader,Car Parks General,Telephones,14/08/2014,IJ00035592,13.50,VODAFONE CORPORATE LIMITED,
East Lindsey District Council,http://statistics.data.gov.uk/id/local-authority/32UC,Enforcement Team Leader,Car Parks General,Telephones,14/08/2014,IJ00035592,6.75,VODAFONE CORPORATE LIMITED,
East Lindsey District Council,http://statistics.data.gov.uk/id/local-authority/32UC,Enforcement Team Leader,Car Parks General,Telephones,14/08/2014,IJ00035592,13.50,VODAFONE CORPORATE LIMITED,
East Lindsey District Council,http://statistics.data.gov.uk/id/local-authority/32UC,Enforcement Team Leader,Car Parks General,Telephones,14/08/2014,IJ00035592,13.50,VODAFONE CORPORATE LIMITED,
East Lindsey District Council,http://statistics.data.gov.uk/id/local-authority/32UC,Enforcement Team Leader,Car Parks General,Telephones,14/08/2014,IJ00035592,6.75,VODAFONE CORPORATE LIMITED,
East Lindsey District Council,http://statistics.data.gov.uk/id/local-authority/32UC,Enforcement Team Leader,Car Parks General,Telephones,14/08/2014,IJ00035592,6.75,VODAFONE CORPORATE LIMITED,
East Lindsey District Council,http://statistics.data.gov.uk/id/local-authority/32UC,Enforcement Team Leader,Car Parks General,Telephones,14/08/2014,IJ00035592,6.75,VODAFONE CORPORATE LIMITED,
East Lindsey District Council,http://statistics.data.gov.uk/id/local-authority/32UC,Enforcement Team Leader,Car Parks General,Telephones,14/08/2014,IJ00035592,6.75,VODAFONE CORPORATE LIMITED,
East Lindsey District Council,http://statistics.data.gov.uk/id/local-authority/32UC,Enforcement Team Leader,Car Parks General,Telephones,14/08/2014,IJ00035592,6.75,VODAFONE CORPORATE LIMITED,
East Lindsey District Council,http://statistics.data.gov.uk/id/local-authority/32UC,Enforcement Team Leader,Car Parks General,Telephones,14/08/2014,IJ00035592,6.75,VODAFONE CORPORATE LIMITED,
East Lindsey District Council,http://statistics.data.gov.uk/id/local-authority/32UC,Enforcement Team Leader,Car Parks General,Telephones,14/08/2014,IJ00035592,6.75,VODAFONE CORPORATE LIMITED,
East Lindsey District Council,http://statistics.data.gov.uk/id/local-authority/32UC,Enforcement Team Leader,Car Parks General,Telephones,14/08/2014,IJ00035592,13.50,VODAFONE CORPORATE LIMITED,
East Lindsey District Council,http://statistics.data.gov.uk/id/local-authority/32UC,Enforcement Team Leader,Car Parks General,Telephones,14/08/2014,IJ00035592,6.75,VODAFONE CORPORATE LIMITED,
East Lindsey District Council,http://statistics.data.gov.uk/id/local-authority/32UC,Enforcement Team Leader,Car Parks General,Telephones,14/08/2014,IJ00035592,6.75,VODAFONE CORPORATE LIMITED,
East Lindsey District Council,http://statistics.data.gov.uk/id/local-authority/32UC,Enforcement Team Leader,Car Parks General,Telephones,14/08/2014,IJ00035592,6.75,VODAFONE CORPORATE LIMITED,
East Lindsey District Council,http://statistics.data.gov.uk/id/local-authority/32UC,Enforcement Team Leader,Car Parks General,Telephones,14/08/2014,IJ00035592,6.75,VODAFONE CORPORATE LIMITED,
East Lindsey District Council,http://statistics.data.gov.uk/id/local-authority/32UC,Enforcement Team Leader,Car Parks General,Telephones,14/08/2014,IJ00035592,13.50,VODAFONE CORPORATE LIMITED,
East Lindsey District Council,http://statistics.data.gov.uk/id/local-authority/32UC,Enforcement Team Leader,Car Parks General,Telephones,14/08/2014,IJ00035592,6.75,VODAFONE CORPORATE LIMITED,
East Lindsey District Council,http://statistics.data.gov.uk/id/local-authority/32UC,Enforcement Team Leader,Car Parks General,Telephones,14/08/2014,IJ00035592,6.75,VODAFONE CORPORATE LIMITED,
East Lindsey District Council,http://statistics.data.gov.uk/id/local-authority/32UC,Enforcement Team Leader,Car Parks General,Telephones,14/08/2014,IJ00035592,6.75,VODAFONE CORPORATE LIMITED,
East Lindsey District Council,http://statistics.data.gov.uk/id/local-authority/32UC,Enforcement Team Leader,Car Parks General,Telephones,14/08/2014,IJ00035592,6.75,VODAFONE CORPORATE LIMITED,
East Lindsey District Council,http://statistics.data.gov.uk/id/local-authority/32UC,Cultural & Related Services,Health Improvement,Telephones,14/08/2014,IJ00035592,2.81,VODAFONE CORPORATE LIMITED,
East Lindsey District Council,http://statistics.data.gov.uk/id/local-authority/32UC,Hsg Advice & Homelessness TL,Wellbeing Service,Telephones,14/08/2014,IJ00035592,187.55,VODAFONE CORPORATE LIMITED,
East Lindsey District Council,http://statistics.data.gov.uk/id/local-authority/32UC,Hsg Advice & Homelessness TL,Enabling Activities Housing Support,Telephones,14/08/2014,IJ00035592,87.17,VODAFONE CORPORATE LIMITED,
East Lindsey District Council,http://statistics.data.gov.uk/id/local-authority/32UC,Hsg Advice & Homelessness TL,Enabling Activities Housing Support,Telephones,14/08/2014,IJ00035592,2.81,VODAFONE CORPORATE LIMITED,
East Lindsey District Council,http://statistics.data.gov.uk/id/local-authority/32UC,Environment Team Leader,Food Safety,Telephones,14/08/2014,IJ00035592,173.49,VODAFONE CORPORATE LIMITED,
East Lindsey District Council,http://statistics.data.gov.uk/id/local-authority/32UC,Neighbourhood Services,Area Working South,Maintenance,28/08/2014,IJ00035926,790.28,THE BODYSHOP SKEGNESS LIMITED,
East Lindsey District Council,http://statistics.data.gov.uk/id/local-authority/32UC,"Performance, Governance & Commissioning",Elections,Postages,07/08/2014,IJ00035311,877.01,ROYAL MAIL,
East Lindsey District Council,http://statistics.data.gov.uk/id/local-authority/32UC,Theatre Manager,Embassy Centre,Materials and Consumables,07/08/2014,IJ00035370,307.50,PHS GROUP PLC,
East Lindsey District Council,http://statistics.data.gov.uk/id/local-authority/32UC,TL Property,Public Buildings,Materials and Consumables,07/08/2014,IJ00035370,73.52,PHS GROUP PLC,
East Lindsey District Council,http://statistics.data.gov.uk/id/local-authority/32UC,Leisure Operations,Station Sports Centre,Materials and Consumables,07/08/2014,IJ00035370,8.00,PHS GROUP PLC,
East Lindsey District Council,http://statistics.data.gov.uk/id/local-authority/32UC,Leisure Operations,Swimming Pool(Coronation Wk)H/Castle,Materials and Consumables,07/08/2014,IJ00035370,321.91,PHS GROUP PLC,
East Lindsey District Council,http://statistics.data.gov.uk/id/local-authority/32UC,Leisure Operations,Embassy Swimming Pool(Skegness),Materials and Consumables,07/08/2014,IJ00035370,269.32,PHS GROUP PLC,
East Lindsey District Council,http://statistics.data.gov.uk/id/local-authority/32UC,TL Property,Public Buildings,Materials and Consumables,07/08/2014,IJ00035370,60.65,PHS GROUP PLC,
East Lindsey District Council,http://statistics.data.gov.uk/id/local-authority/32UC,Economic & Tourism,ED: General Marketing & Promotion,Materials and Consumables,07/08/2014,IJ00035370,76.26,PHS GROUP PLC,
East Lindsey District Council,http://statistics.data.gov.uk/id/local-authority/32UC,Economic & Tourism,ED: General Marketing & Promotion,Materials and Consumables,07/08/2014,IJ00035370,300.62,PHS GROUP PLC,
East Lindsey District Council,http://statistics.data.gov.uk/id/local-authority/32UC,Leisure Operations,London Road Sports Centre,Cleaning Contract,07/08/2014,IJ00035370,273.51,PHS GROUP PLC,
East Lindsey District Council,http://statistics.data.gov.uk/id/local-authority/32UC,Leisure Operations,Meridian Leisure Centre,Cleaning Contract,07/08/2014,IJ00035370,2131.93,PHS GROUP PLC,
East Lindsey District Council,http://statistics.data.gov.uk/id/local-authority/32UC,Theatre Manager,Town Halls - Operational Costs,Materials and Consumables,07/08/2014,IJ00035370,44.72,PHS GROUP PLC,
East Lindsey District Council,http://statistics.data.gov.uk/id/local-authority/32UC,Leisure Operations,Meridian Leisure Centre,Furniture and Equipment,21/08/2014,IJ00035772,1283.60,PHS GROUP PLC,
East Lindsey District Council,http://statistics.data.gov.uk/id/local-authority/32UC,Enforcement Team Leader,Car Parks General,Stationery,14/08/2014,IJ00035584,1026.00,PAPERWORK UK LTD,
East Lindsey District Council,http://statistics.data.gov.uk/id/local-authority/32UC,Waste Services Manager,Household & Trade Refuse Coll. General,Other agencies,14/08/2014,IJ00035566,998.14,GLASS RECYCLING (UK) LTD,
East Lindsey District Council,http://statistics.data.gov.uk/id/local-authority/32UC,"Performance, Governance & Commissioning",Register of Electors,Computer Software Purchase,07/08/2014,IJ00035318,574.49,DELL COMPUTER CORPORATION LTD,
East Lindsey District Council,http://statistics.data.gov.uk/id/local-authority/32UC,Corporate Management,Corporate Management,Lincolnshire Legal Services,07/08/2014,IJ00035293,17613.95,LINCOLNSHIRE COUNTY COUNCIL,
East Lindsey District Council,http://statistics.data.gov.uk/id/local-authority/32UC,Corporate Management,Corporate Management,Lincolnshire Legal Services,07/08/2014,IJ00035293,1546.35,LINCOLNSHIRE COUNTY COUNCIL,
East Lindsey District Council,http://statistics.data.gov.uk/id/local-authority/32UC,"Performance, Governance & Commissioning",Member Services,Other Miscellaneous Expenses,14/08/2014,IJ00035516,626.05,LINCOLNSHIRE COUNTY COUNCIL,
East Lindsey District Council,http://statistics.data.gov.uk/id/local-authority/32UC,Collection Fund,Collection Fund,Precept- Lincolnshire County Council,07/08/2014,IJ00035446,4341195.00,LINCOLNSHIRE COUNTY COUNCIL,
East Lindsey District Council,http://statistics.data.gov.uk/id/local-authority/32UC,Collection Fund,Collection Fund,Share of NDR Income - Lincolnshire,07/08/2014,IJ00035446,310145.00,LINCOLNSHIRE COUNTY COUNCIL,
East Lindsey District Council,http://statistics.data.gov.uk/id/local-authority/32UC,Information Technology,IT - System Support,Telephones,21/08/2014,IJ00035712,4271.59,LINCOLNSHIRE COUNTY COUNCIL,
East Lindsey District Council,http://statistics.data.gov.uk/id/local-authority/32UC,Corporate Accounting,Taxation and Non-Specific Grants,Business Rates Tariff,21/08/2014,IJ00035832,742410.00,LINCOLNSHIRE COUNTY COUNCIL,
East Lindsey District Council,http://statistics.data.gov.uk/id/local-authority/32UC,Economic & Tourism,Tourism,Other Miscellaneous Expenses,28/08/2014,IJ00035920,5000.00,LINCOLNSHIRE COUNTY COUNCIL,
East Lindsey District Council,http://statistics.data.gov.uk/id/local-authority/32UC,Theatre Manager,Foreshore - Theatre,Buildings Maintenance - Programmed,21/08/2014,IJ00035647,714.76,SEYMOUR & CASTLE LTD,
East Lindsey District Council,http://statistics.data.gov.uk/id/local-authority/32UC,TL Property,Public Buildings,Cleaning Contract,21/08/2014,IJ00035682,5062.63,SEYMOUR & CASTLE LTD,
East Lindsey District Council,http://statistics.data.gov.uk/id/local-authority/32UC,Economic & Tourism,Tourism,Grants and Contributions to Outside Bodies- No Service Recei,21/08/2014,IJ00035793,6630.00,SEYMOUR & CASTLE LTD,
East Lindsey District Council,http://statistics.data.gov.uk/id/local-authority/32UC,Waste Services Manager,Household & Trade Refuse Coll. General,Fuel & Oil,21/08/2014,IJ00035778,19170.00,WATSON PETROLEUM LTD,
East Lindsey District Council,http://statistics.data.gov.uk/id/local-authority/32UC,Economic & Tourism,Tourism,Other Miscellaneous Expenses,21/08/2014,IJ00035790,666.79,RBS INVOICE FINANCE LIMITED,
East Lindsey District Council,http://statistics.data.gov.uk/id/local-authority/32UC,BALANCE  SHEET,Balance Sheet,Payroll-Unison,28/08/2014,IJ00035951,1614.55,UNISON,
East Lindsey District Council,http://statistics.data.gov.uk/id/local-authority/32UC,TL Property,Footway Lighting,Electricity,07/08/2014,IJ00035424,3748.88,SOUTHERN ELECTRIC PLC,
East Lindsey District Council,http://statistics.data.gov.uk/id/local-authority/32UC,TL Property,Footway Lighting,Electricity,07/08/2014,IJ00035424,44.27,SOUTHERN ELECTRIC PLC,
East Lindsey District Council,http://statistics.data.gov.uk/id/local-authority/32UC,Neighbourhood Services,Community Parks & Open Spaces - Neighbourhood Services,Electricity,07/08/2014,IJ00035424,32.18,SOUTHERN ELECTRIC PLC,
East Lindsey District Council,http://statistics.data.gov.uk/id/local-authority/32UC,Enforcement Team Leader,Car Parks General,Electricity,07/08/2014,IJ00035424,3.80,SOUTHERN ELECTRIC PLC,
East Lindsey District Council,http://statistics.data.gov.uk/id/local-authority/32UC,Enforcement Team Leader,Car Parks General,Electricity,07/08/2014,IJ00035424,15.82,SOUTHERN ELECTRIC PLC,
East Lindsey District Council,http://statistics.data.gov.uk/id/local-authority/32UC,Enforcement Team Leader,Car Parks General,Electricity,07/08/2014,IJ00035424,15.82,SOUTHERN ELECTRIC PLC,
East Lindsey District Council,http://statistics.data.gov.uk/id/local-authority/32UC,Enforcement Team Leader,Car Parks General,Electricity,07/08/2014,IJ00035424,12.87,SOUTHERN ELECTRIC PLC,
East Lindsey District Council,http://statistics.data.gov.uk/id/local-authority/32UC,Enforcement Team Leader,Car Parks General,Electricity,07/08/2014,IJ00035424,18.42,SOUTHERN ELECTRIC PLC,
East Lindsey District Council,http://statistics.data.gov.uk/id/local-authority/32UC,Enforcement Team Leader,Car Parks General,Electricity,07/08/2014,IJ00035424,34.95,SOUTHERN ELECTRIC PLC,
East Lindsey District Council,http://statistics.data.gov.uk/id/local-authority/32UC,Enforcement Team Leader,Car Parks General,Electricity,07/08/2014,IJ00035424,42.84,SOUTHERN ELECTRIC PLC,
East Lindsey District Council,http://statistics.data.gov.uk/id/local-authority/32UC,Enforcement Team Leader,Car Parks General,Electricity,07/08/2014,IJ00035424,12.11,SOUTHERN ELECTRIC PLC,
East Lindsey District Council,http://statistics.data.gov.uk/id/local-authority/32UC,Enforcement Team Leader,Car Parks General,Electricity,07/08/2014,IJ00035424,31.37,SOUTHERN ELECTRIC PLC,
East Lindsey District Council,http://statistics.data.gov.uk/id/local-authority/32UC,Neighbourhood Services,Cemeteries - Neighbourhood Services,Electricity,07/08/2014,IJ00035424,4.20,SOUTHERN ELECTRIC PLC,
East Lindsey District Council,http://statistics.data.gov.uk/id/local-authority/32UC,Enforcement Team Leader,Car Parks General,Electricity,07/08/2014,IJ00035424,40.64,SOUTHERN ELECTRIC PLC,
East Lindsey District Council,http://statistics.data.gov.uk/id/local-authority/32UC,Leisure Operations,Embassy Swimming Pool(Skegness),Electricity,21/08/2014,IJ00035654,2646.56,SOUTHERN ELECTRIC PLC,
East Lindsey District Council,http://statistics.data.gov.uk/id/local-authority/32UC,TL Property,Footway Lighting,Electricity,21/08/2014,IJ00035655,3748.86,SOUTHERN ELECTRIC PLC,
East Lindsey District Council,http://statistics.data.gov.uk/id/local-authority/32UC,TL Property,Footway Lighting,Electricity,21/08/2014,IJ00035655,44.25,SOUTHERN ELECTRIC PLC,
East Lindsey District Council,http://statistics.data.gov.uk/id/local-authority/32UC,Neighbourhood Services,Community Parks & Open Spaces - Neighbourhood Services,Electricity,21/08/2014,IJ00035655,32.17,SOUTHERN ELECTRIC PLC,
East Lindsey District Council,http://statistics.data.gov.uk/id/local-authority/32UC,Enforcement Team Leader,Car Parks General,Electricity,21/08/2014,IJ00035655,3.80,SOUTHERN ELECTRIC PLC,
East Lindsey District Council,http://statistics.data.gov.uk/id/local-authority/32UC,Enforcement Team Leader,Car Parks General,Electricity,21/08/2014,IJ00035655,15.82,SOUTHERN ELECTRIC PLC,
East Lindsey District Council,http://statistics.data.gov.uk/id/local-authority/32UC,Enforcement Team Leader,Car Parks General,Electricity,21/08/2014,IJ00035655,15.82,SOUTHERN ELECTRIC PLC,
East Lindsey District Council,http://statistics.data.gov.uk/id/local-authority/32UC,Enforcement Team Leader,Car Parks General,Electricity,21/08/2014,IJ00035655,12.87,SOUTHERN ELECTRIC PLC,
East Lindsey District Council,http://statistics.data.gov.uk/id/local-authority/32UC,Enforcement Team Leader,Car Parks General,Electricity,21/08/2014,IJ00035655,18.42,SOUTHERN ELECTRIC PLC,
East Lindsey District Council,http://statistics.data.gov.uk/id/local-authority/32UC,Enforcement Team Leader,Car Parks General,Electricity,21/08/2014,IJ00035655,34.95,SOUTHERN ELECTRIC PLC,
East Lindsey District Council,http://statistics.data.gov.uk/id/local-authority/32UC,Enforcement Team Leader,Car Parks General,Electricity,21/08/2014,IJ00035655,42.84,SOUTHERN ELECTRIC PLC,
East Lindsey District Council,http://statistics.data.gov.uk/id/local-authority/32UC,Enforcement Team Leader,Car Parks General,Electricity,21/08/2014,IJ00035655,12.11,SOUTHERN ELECTRIC PLC,
East Lindsey District Council,http://statistics.data.gov.uk/id/local-authority/32UC,Enforcement Team Leader,Car Parks General,Electricity,21/08/2014,IJ00035655,31.38,SOUTHERN ELECTRIC PLC,
East Lindsey District Council,http://statistics.data.gov.uk/id/local-authority/32UC,Neighbourhood Services,Cemeteries - Neighbourhood Services,Electricity,21/08/2014,IJ00035655,4.20,SOUTHERN ELECTRIC PLC,
East Lindsey District Council,http://statistics.data.gov.uk/id/local-authority/32UC,Enforcement Team Leader,Car Parks General,Electricity,21/08/2014,IJ00035655,40.66,SOUTHERN ELECTRIC PLC,
East Lindsey District Council,http://statistics.data.gov.uk/id/local-authority/32UC,TL Property,Illuminations,Electricity,28/08/2014,IJ00036001,-22.05,SOUTHERN ELECTRIC PLC,
East Lindsey District Council,http://statistics.data.gov.uk/id/local-authority/32UC,TL Property,Illuminations,Electricity,28/08/2014,IJ00036001,117.42,SOUTHERN ELECTRIC PLC,
East Lindsey District Council,http://statistics.data.gov.uk/id/local-authority/32UC,Hsg Private Sector TL,Community Safety/CCTV,Electricity,28/08/2014,IJ00036001,32.97,SOUTHERN ELECTRIC PLC,
East Lindsey District Council,http://statistics.data.gov.uk/id/local-authority/32UC,Neighbourhood Services,Premises Development - Neighbourhood Services,Electricity,28/08/2014,IJ00036001,60.90,SOUTHERN ELECTRIC PLC,
East Lindsey District Council,http://statistics.data.gov.uk/id/local-authority/32UC,TL Property,PPE Other Land & Buildings,Electricity,28/08/2014,IJ00036001,192.35,SOUTHERN ELECTRIC PLC,
East Lindsey District Council,http://statistics.data.gov.uk/id/local-authority/32UC,Neighbourhood Services,Public Conveniences,Electricity,28/08/2014,IJ00036001,-132.18,SOUTHERN ELECTRIC PLC,
East Lindsey District Council,http://statistics.data.gov.uk/id/local-authority/32UC,Economic & Tourism,ED: General Marketing & Promotion,Electricity,28/08/2014,IJ00036001,855.29,SOUTHERN ELECTRIC PLC,
East Lindsey District Council,http://statistics.data.gov.uk/id/local-authority/32UC,TL Property,Public Buildings,Electricity,28/08/2014,IJ00036001,2332.99,SOUTHERN ELECTRIC PLC,
East Lindsey District Council,http://statistics.data.gov.uk/id/local-authority/32UC,Enforcement Team Leader,Car Parks General,Electricity,28/08/2014,IJ00036001,-439.10,SOUTHERN ELECTRIC PLC,
East Lindsey District Council,http://statistics.data.gov.uk/id/local-authority/32UC,Enforcement Team Leader,Car Parks General,Electricity,28/08/2014,IJ00036001,166.95,SOUTHERN ELECTRIC PLC,
East Lindsey District Council,http://statistics.data.gov.uk/id/local-authority/32UC,Theatre Manager,Embassy Centre,Electricity,28/08/2014,IJ00035997,1213.82,SOUTHERN ELECTRIC PLC,
East Lindsey District Council,http://statistics.data.gov.uk/id/local-authority/32UC,Theatre Manager,Community Parks & Open Spaces - Theatre,Electricity,28/08/2014,IJ00035997,1020.93,SOUTHERN ELECTRIC PLC,
East Lindsey District Council,http://statistics.data.gov.uk/id/local-authority/32UC,Leisure Operations,Recreation Ground Charles St Louth,Electricity,28/08/2014,IJ00035997,200.52,SOUTHERN ELECTRIC PLC,
East Lindsey District Council,http://statistics.data.gov.uk/id/local-authority/32UC,TL Property,Illuminations,Electricity,28/08/2014,IJ00035997,-31.80,SOUTHERN ELECTRIC PLC,
East Lindsey District Council,http://statistics.data.gov.uk/id/local-authority/32UC,TL Property,Illuminations,Electricity,28/08/2014,IJ00035997,6.02,SOUTHERN ELECTRIC PLC,
East Lindsey District Council,http://statistics.data.gov.uk/id/local-authority/32UC,Neighbourhood Services,Public Conveniences,Electricity,28/08/2014,IJ00035997,-249.03,SOUTHERN ELECTRIC PLC,
East Lindsey District Council,http://statistics.data.gov.uk/id/local-authority/32UC,Neighbourhood Services,Public Conveniences,Electricity,28/08/2014,IJ00035997,656.02,SOUTHERN ELECTRIC PLC,
East Lindsey District Council,http://statistics.data.gov.uk/id/local-authority/32UC,TL Property,Public Buildings,Electricity,28/08/2014,IJ00035997,4303.46,SOUTHERN ELECTRIC PLC,
East Lindsey District Council,http://statistics.data.gov.uk/id/local-authority/32UC,TL Property,Depots,Electricity,28/08/2014,IJ00035997,237.71,SOUTHERN ELECTRIC PLC,
East Lindsey District Council,http://statistics.data.gov.uk/id/local-authority/32UC,Neighbourhood Services,Public Conveniences,Electricity,28/08/2014,IJ00035997,196.46,SOUTHERN ELECTRIC PLC,
East Lindsey District Council,http://statistics.data.gov.uk/id/local-authority/32UC,Economic & Tourism,Caravan Park (Kingfisher) Ingoldmells,Electricity,28/08/2014,IJ00035996,6360.81,SOUTHERN ELECTRIC PLC,
East Lindsey District Council,http://statistics.data.gov.uk/id/local-authority/32UC,Economic & Tourism,Caravan Park (Kingfisher) Ingoldmells,Electricity,28/08/2014,IJ00035996,243.11,SOUTHERN ELECTRIC PLC,
East Lindsey District Council,http://statistics.data.gov.uk/id/local-authority/32UC,TL Property,Illuminations,Electricity,28/08/2014,IJ00035996,116.33,SOUTHERN ELECTRIC PLC,
East Lindsey District Council,http://statistics.data.gov.uk/id/local-authority/32UC,TL Property,Illuminations,Electricity,28/08/2014,IJ00035996,-128.07,SOUTHERN ELECTRIC PLC,
East Lindsey District Council,http://statistics.data.gov.uk/id/local-authority/32UC,Enforcement Team Leader,Car Parks General,Electricity,28/08/2014,IJ00035996,208.13,SOUTHERN ELECTRIC PLC,
East Lindsey District Council,http://statistics.data.gov.uk/id/local-authority/32UC,Neighbourhood Services,Community Parks & Open Spaces - Neighbourhood Services,Electricity,28/08/2014,IJ00035996,1205.09,SOUTHERN ELECTRIC PLC,
East Lindsey District Council,http://statistics.data.gov.uk/id/local-authority/32UC,Economic & Tourism,ED: General Marketing & Promotion,Electricity,28/08/2014,IJ00035996,416.75,SOUTHERN ELECTRIC PLC,
East Lindsey District Council,http://statistics.data.gov.uk/id/local-authority/32UC,Leisure Operations,Skegness Bowls,Electricity,28/08/2014,IJ00035996,63.43,SOUTHERN ELECTRIC PLC,
East Lindsey District Council,http://statistics.data.gov.uk/id/local-authority/32UC,Leisure Operations,Skegness Bowls,Electricity,28/08/2014,IJ00035996,-192.01,SOUTHERN ELECTRIC PLC,
East Lindsey District Council,http://statistics.data.gov.uk/id/local-authority/32UC,Neighbourhood Services,Public Conveniences,Electricity,28/08/2014,IJ00035996,847.91,SOUTHERN ELECTRIC PLC,
East Lindsey District Council,http://statistics.data.gov.uk/id/local-authority/32UC,Leisure Operations,Meridian Leisure Centre,Electricity,28/08/2014,IJ00036006,8304.34,SOUTHERN ELECTRIC PLC,
East Lindsey District Council,http://statistics.data.gov.uk/id/local-authority/32UC,Leisure Operations,Playing Fields(Memorial) Wainfleet Skeg,Electricity,28/08/2014,IJ00036006,316.75,SOUTHERN ELECTRIC PLC,
East Lindsey District Council,http://statistics.data.gov.uk/id/local-authority/32UC,Hsg Private Sector TL,Community Safety/CCTV,Electricity,28/08/2014,IJ00036006,23.28,SOUTHERN ELECTRIC PLC,
East Lindsey District Council,http://statistics.data.gov.uk/id/local-authority/32UC,Neighbourhood Services,Premises Development - Neighbourhood Services,Electricity,28/08/2014,IJ00036006,-22.43,SOUTHERN ELECTRIC PLC,
East Lindsey District Council,http://statistics.data.gov.uk/id/local-authority/32UC,TL Property,PPE Other Land & Buildings,Electricity,28/08/2014,IJ00036006,161.26,SOUTHERN ELECTRIC PLC,
East Lindsey District Council,http://statistics.data.gov.uk/id/local-authority/32UC,TL Property,PPE Other Land & Buildings,Electricity,28/08/2014,IJ00036006,220.52,SOUTHERN ELECTRIC PLC,
East Lindsey District Council,http://statistics.data.gov.uk/id/local-authority/32UC,Neighbourhood Services,Public Conveniences,Electricity,28/08/2014,IJ00036006,250.00,SOUTHERN ELECTRIC PLC,
East Lindsey District Council,http://statistics.data.gov.uk/id/local-authority/32UC,Enforcement Team Leader,Car Parks General,Electricity,28/08/2014,IJ00036006,161.26,SOUTHERN ELECTRIC PLC,
East Lindsey District Council,http://statistics.data.gov.uk/id/local-authority/32UC,TL Property,Illuminations,Electricity,28/08/2014,IJ00036004,-102.78,SOUTHERN ELECTRIC PLC,
East Lindsey District Council,http://statistics.data.gov.uk/id/local-authority/32UC,TL Property,Illuminations,Electricity,28/08/2014,IJ00036004,56.95,SOUTHERN ELECTRIC PLC,
East Lindsey District Council,http://statistics.data.gov.uk/id/local-authority/32UC,TL Property,Illuminations,Electricity,28/08/2014,IJ00036004,303.08,SOUTHERN ELECTRIC PLC,
East Lindsey District Council,http://statistics.data.gov.uk/id/local-authority/32UC,TL Property,Illuminations,Electricity,28/08/2014,IJ00036004,284.64,SOUTHERN ELECTRIC PLC,
East Lindsey District Council,http://statistics.data.gov.uk/id/local-authority/32UC,Enforcement Team Leader,Bus & Coach Stations,Electricity,28/08/2014,IJ00036004,215.01,SOUTHERN ELECTRIC PLC,
East Lindsey District Council,http://statistics.data.gov.uk/id/local-authority/32UC,Leisure Operations,London Road Sports Centre,Electricity,28/08/2014,IJ00036004,460.01,SOUTHERN ELECTRIC PLC,
East Lindsey District Council,http://statistics.data.gov.uk/id/local-authority/32UC,Neighbourhood Services,Public Conveniences,Electricity,28/08/2014,IJ00036004,176.98,SOUTHERN ELECTRIC PLC,
East Lindsey District Council,http://statistics.data.gov.uk/id/local-authority/32UC,TL Property,Heritage,Electricity,28/08/2014,IJ00036004,1717.45,SOUTHERN ELECTRIC PLC,
East Lindsey District Council,http://statistics.data.gov.uk/id/local-authority/32UC,Neighbourhood Services,Public Conveniences,Electricity,28/08/2014,IJ00036004,166.97,SOUTHERN ELECTRIC PLC,
East Lindsey District Council,http://statistics.data.gov.uk/id/local-authority/32UC,Neighbourhood Services,Public Conveniences,Electricity,28/08/2014,IJ00036004,163.26,SOUTHERN ELECTRIC PLC,
East Lindsey District Council,http://statistics.data.gov.uk/id/local-authority/32UC,Theatre Manager,Embassy Centre,Performers and Entertainers Fees,07/08/2014,IJ00035415,2501.31,FULL HOUSE PRODUCTIONS,
East Lindsey District Council,http://statistics.data.gov.uk/id/local-authority/32UC,Theatre Manager,Embassy Centre,Performers and Entertainers Fees,07/08/2014,IJ00035415,-210.00,FULL HOUSE PRODUCTIONS,
East Lindsey District Council,http://statistics.data.gov.uk/id/local-authority/32UC,Economic & Tourism,ED: General Marketing & Promotion,Agency Staff,07/08/2014,IJ00035348,49.00,WORKFORCE UNLIMITED,
East Lindsey District Council,http://statistics.data.gov.uk/id/local-authority/32UC,Economic & Tourism,ED: General Marketing & Promotion,Agency Staff,07/08/2014,IJ00035348,382.20,WORKFORCE UNLIMITED,
East Lindsey District Council,http://statistics.data.gov.uk/id/local-authority/32UC,Economic & Tourism,ED: General Marketing & Promotion,Agency Staff,07/08/2014,IJ00035348,369.95,WORKFORCE UNLIMITED,
East Lindsey District Council,http://statistics.data.gov.uk/id/local-authority/32UC,Economic & Tourism,ED: General Marketing & Promotion,Agency Staff,21/08/2014,IJ00035794,31.85,WORKFORCE UNLIMITED,
East Lindsey District Council,http://statistics.data.gov.uk/id/local-authority/32UC,Economic & Tourism,ED: General Marketing & Promotion,Agency Staff,21/08/2014,IJ00035794,744.80,WORKFORCE UNLIMITED,
East Lindsey District Council,http://statistics.data.gov.uk/id/local-authority/32UC,Economic & Tourism,ED: General Marketing & Promotion,Agency Staff,21/08/2014,IJ00035796,39.20,WORKFORCE UNLIMITED,
East Lindsey District Council,http://statistics.data.gov.uk/id/local-authority/32UC,Economic & Tourism,ED: General Marketing & Promotion,Agency Staff,21/08/2014,IJ00035796,764.40,WORKFORCE UNLIMITED,
East Lindsey District Council,http://statistics.data.gov.uk/id/local-authority/32UC,Economic & Tourism,ED: General Marketing & Promotion,Agency Staff,28/08/2014,IJ00035922,24.50,WORKFORCE UNLIMITED,
East Lindsey District Council,http://statistics.data.gov.uk/id/local-authority/32UC,Economic & Tourism,ED: General Marketing & Promotion,Agency Staff,28/08/2014,IJ00035922,732.55,WORKFORCE UNLIMITED,
East Lindsey District Council,http://statistics.data.gov.uk/id/local-authority/32UC,Theatre Manager,Embassy Centre,Buildings Maintenance - Programmed,07/08/2014,IJ00035433,2519.32,DEVLIN DECORATORS LTD,
East Lindsey District Council,http://statistics.data.gov.uk/id/local-authority/32UC,Neighbourhood Services,Community Parks & Open Spaces - Neighbourhood Services,Buildings Maintenance - Programmed,21/08/2014,IJ00035638,1889.16,DEVLIN DECORATORS LTD,
East Lindsey District Council,http://statistics.data.gov.uk/id/local-authority/32UC,Enforcement Team Leader,Car Parks General,Buildings Maintenance - Responsive,28/08/2014,IJ00035872,1417.40,DEVLIN DECORATORS LTD,
East Lindsey District Council,http://statistics.data.gov.uk/id/local-authority/32UC,Revenues & Benefits,Council Tax,Other Miscellaneous Expenses,14/08/2014,IJ00035598,4227.94,ALLPAY NET LTD,
East Lindsey District Council,http://statistics.data.gov.uk/id/local-authority/32UC,Revenues & Benefits,Housing Benefits Administration,Other Miscellaneous Expenses,14/08/2014,IJ00035598,97.87,ALLPAY NET LTD,
East Lindsey District Council,http://statistics.data.gov.uk/id/local-authority/32UC,Leisure Operations,Swimming Pool(Coronation Wk)H/Castle,Course Fees,14/08/2014,IJ00035459,540.00,IQL UK LTD,
East Lindsey District Council,http://statistics.data.gov.uk/id/local-authority/32UC,Neighbourhood Services,Outdoor Sport & Recreation - Neighbourhood Services,Professional & Contractors Fees,07/08/2014,IJ00035361,736.00,EKM LTD,
East Lindsey District Council,http://statistics.data.gov.uk/id/local-authority/32UC,Cultural & Related Services,Cultural Activities,Professional & Contractors Fees,21/08/2014,IJ00035768,950.00,LIVES,
East Lindsey District Council,http://statistics.data.gov.uk/id/local-authority/32UC,Corporate Management,Corporate Management,Postages,21/08/2014,IJ00035782,9000.00,NEOPOST LTD,
East Lindsey District Council,http://statistics.data.gov.uk/id/local-authority/32UC,"Performance, Governance & Commissioning",Member Services,Grants and Contributions to Outside Bodies- No Service Recei,07/08/2014,IJ00035383,1000.00,LANGRIVILLE PARISH COUNCIL,
East Lindsey District Council,http://statistics.data.gov.uk/id/local-authority/32UC,BALANCE  SHEET,Balance Sheet,Payroll Sacrifice Nursery Voucher,14/08/2014,IJ00035542,2717.00,SODEXHO,
East Lindsey District Council,http://statistics.data.gov.uk/id/local-authority/32UC,Theatre Manager,Embassy Centre,Performers and Entertainers Fees,07/08/2014,IJ00035412,7064.60,HANDSHAKE LTD,
East Lindsey District Council,http://statistics.data.gov.uk/id/local-authority/32UC,Theatre Manager,Embassy Centre,Performers and Entertainers Fees,07/08/2014,IJ00035412,-300.00,HANDSHAKE LTD,
East Lindsey District Council,http://statistics.data.gov.uk/id/local-authority/32UC,Theatre Manager,Embassy Centre,Advertising - Events,07/08/2014,IJ00035412,75.00,HANDSHAKE LTD,
East Lindsey District Council,http://statistics.data.gov.uk/id/local-authority/32UC,Theatre Manager,Embassy Centre,Performers and Entertainers Fees,21/08/2014,IJ00035811,1832.47,HOUSEFULL PRODUCTIONS LTD,
East Lindsey District Council,http://statistics.data.gov.uk/id/local-authority/32UC,Theatre Manager,Embassy Centre,Performers and Entertainers Fees,21/08/2014,IJ00035811,-458.00,HOUSEFULL PRODUCTIONS LTD,
East Lindsey District Council,http://statistics.data.gov.uk/id/local-authority/32UC,Information Technology,IT - System Support,Computer Software Licence Costs,07/08/2014,IJ00035408,14168.80,PHOENIX SOFTWARE LIMITED,
East Lindsey District Council,http://statistics.data.gov.uk/id/local-authority/32UC,Leisure Operations,Swimming Pool(Coronation Wk)H/Castle,Gas,07/08/2014,IJ00035447,1329.79,ESPO,
East Lindsey District Council,http://statistics.data.gov.uk/id/local-authority/32UC,Leisure Operations,Meridian Leisure Centre,Gas,07/08/2014,IJ00035447,7324.11,ESPO,
East Lindsey District Council,http://statistics.data.gov.uk/id/local-authority/32UC,Leisure Operations,Meridian Leisure Centre,Gas,07/08/2014,IJ00035447,85.63,ESPO,
East Lindsey District Council,http://statistics.data.gov.uk/id/local-authority/32UC,Leisure Operations,Playing Fields(Memorial) Wainfleet Skeg,Gas,07/08/2014,IJ00035447,54.07,ESPO,
East Lindsey District Council,http://statistics.data.gov.uk/id/local-authority/32UC,TL Property,Public Buildings,Gas,07/08/2014,IJ00035447,10.11,ESPO,
East Lindsey District Council,http://statistics.data.gov.uk/id/local-authority/32UC,TL Property,Public Buildings,Gas,07/08/2014,IJ00035447,357.38,ESPO,
East Lindsey District Council,http://statistics.data.gov.uk/id/local-authority/32UC,TL Property,Public Buildings,Gas,07/08/2014,IJ00035447,33.22,ESPO,
East Lindsey District Council,http://statistics.data.gov.uk/id/local-authority/32UC,TL Property,Public Buildings,Gas,07/08/2014,IJ00035447,-979.37,ESPO,
East Lindsey District Council,http://statistics.data.gov.uk/id/local-authority/32UC,TL Property,Public Buildings,Gas,07/08/2014,IJ00035447,1258.30,ESPO,
East Lindsey District Council,http://statistics.data.gov.uk/id/local-authority/32UC,Economic & Tourism,ED: General Marketing & Promotion,Gas,07/08/2014,IJ00035447,163.08,ESPO,
East Lindsey District Council,http://statistics.data.gov.uk/id/local-authority/32UC,Leisure Operations,Station Sports Centre,Gas,07/08/2014,IJ00035447,173.85,ESPO,
East Lindsey District Council,http://statistics.data.gov.uk/id/local-authority/32UC,Economic & Tourism,ED: General Marketing & Promotion,Gas,07/08/2014,IJ00035447,-281.82,ESPO,
East Lindsey District Council,http://statistics.data.gov.uk/id/local-authority/32UC,Economic & Tourism,ED: General Marketing & Promotion,Gas,07/08/2014,IJ00035447,359.35,ESPO,
East Lindsey District Council,http://statistics.data.gov.uk/id/local-authority/32UC,TL Property,Public Buildings,Gas,07/08/2014,IJ00035447,106.52,ESPO,
East Lindsey District Council,http://statistics.data.gov.uk/id/local-authority/32UC,Leisure Operations,London Road Sports Centre,Gas,07/08/2014,IJ00035447,135.49,ESPO,
East Lindsey District Council,http://statistics.data.gov.uk/id/local-authority/32UC,TL Property,PPE Other Land & Buildings,Gas,07/08/2014,IJ00035447,30.90,ESPO,
East Lindsey District Council,http://statistics.data.gov.uk/id/local-authority/32UC,Economic & Tourism,Caravan Park (Kingfisher) Ingoldmells,Gas,07/08/2014,IJ00035447,58.57,ESPO,
East Lindsey District Council,http://statistics.data.gov.uk/id/local-authority/32UC,Development Control,Development Control,Stationery,14/08/2014,IJ00035458,73.21,ESPO,
East Lindsey District Council,http://statistics.data.gov.uk/id/local-authority/32UC,Theatre Manager,Embassy Centre,Furniture and Equipment,14/08/2014,IJ00035458,184.00,ESPO,
East Lindsey District Council,http://statistics.data.gov.uk/id/local-authority/32UC,Neighbourhood Services,Area Working North,Materials and Consumables,14/08/2014,IJ00035458,1324.34,ESPO,
East Lindsey District Council,http://statistics.data.gov.uk/id/local-authority/32UC,Leisure Operations,Embassy Swimming Pool(Skegness),Materials and Consumables,14/08/2014,IJ00035458,153.73,ESPO,
East Lindsey District Council,http://statistics.data.gov.uk/id/local-authority/32UC,Neighbourhood Services,Area Working South,Materials and Consumables,14/08/2014,IJ00035458,3234.00,ESPO,
East Lindsey District Council,http://statistics.data.gov.uk/id/local-authority/32UC,Leisure Operations,Meridian Leisure Centre,Furniture and Equipment,14/08/2014,IJ00035458,313.25,ESPO,
East Lindsey District Council,http://statistics.data.gov.uk/id/local-authority/32UC,Leisure Operations,Station Sports Centre,Furniture and Equipment,14/08/2014,IJ00035458,99.59,ESPO,
East Lindsey District Council,http://statistics.data.gov.uk/id/local-authority/32UC,Leisure Operations,Swimming Pool(Coronation Wk)H/Castle,Furniture and Equipment,14/08/2014,IJ00035458,33.00,ESPO,
East Lindsey District Council,http://statistics.data.gov.uk/id/local-authority/32UC,Leisure Operations,Embassy Swimming Pool(Skegness),Furniture and Equipment,14/08/2014,IJ00035458,559.00,ESPO,
East Lindsey District Council,http://statistics.data.gov.uk/id/local-authority/32UC,Leisure Operations,Station Sports Centre,Cleaning Contract,14/08/2014,IJ00035458,104.01,ESPO,
East Lindsey District Council,http://statistics.data.gov.uk/id/local-authority/32UC,Leisure Operations,Embassy Swimming Pool(Skegness),Stationery,14/08/2014,IJ00035458,18.80,ESPO,
East Lindsey District Council,http://statistics.data.gov.uk/id/local-authority/32UC,Environment Team Leader,Food Safety,Stationery,14/08/2014,IJ00035458,19.50,ESPO,
East Lindsey District Council,http://statistics.data.gov.uk/id/local-authority/32UC,Theatre Manager,Embassy Centre,Cleaning Contract,14/08/2014,IJ00035577,205.15,ESPO,
East Lindsey District Council,http://statistics.data.gov.uk/id/local-authority/32UC,Cultural & Related Services,Cultural Activities,Stationery,14/08/2014,IJ00035577,37.33,ESPO,
East Lindsey District Council,http://statistics.data.gov.uk/id/local-authority/32UC,Neighbourhood Services,Area Working North,Materials and Consumables,14/08/2014,IJ00035577,257.16,ESPO,
East Lindsey District Council,http://statistics.data.gov.uk/id/local-authority/32UC,Leisure Operations,Meridian Leisure Centre,Furniture and Equipment,14/08/2014,IJ00035577,478.91,ESPO,
East Lindsey District Council,http://statistics.data.gov.uk/id/local-authority/32UC,Leisure Operations,Swimming Pool(Coronation Wk)H/Castle,Furniture and Equipment,14/08/2014,IJ00035577,62.75,ESPO,
East Lindsey District Council,http://statistics.data.gov.uk/id/local-authority/32UC,Theatre Manager,Embassy Centre,Furniture and Equipment,21/08/2014,IJ00035835,10.50,ESPO,
East Lindsey District Council,http://statistics.data.gov.uk/id/local-authority/32UC,Neighbourhood Services,Area Working North,Materials and Consumables,21/08/2014,IJ00035835,764.36,ESPO,
East Lindsey District Council,http://statistics.data.gov.uk/id/local-authority/32UC,Economic & Tourism,Caravan Park (Kingfisher) Ingoldmells,Materials and Consumables,21/08/2014,IJ00035835,43.84,ESPO,
East Lindsey District Council,http://statistics.data.gov.uk/id/local-authority/32UC,Economic & Tourism,Caravan Park (Kingfisher) Ingoldmells,Stationery,21/08/2014,IJ00035835,18.32,ESPO,
East Lindsey District Council,http://statistics.data.gov.uk/id/local-authority/32UC,Leisure Operations,Swimming Pool(Coronation Wk)H/Castle,Furniture and Equipment,21/08/2014,IJ00035835,147.95,ESPO,
East Lindsey District Council,http://statistics.data.gov.uk/id/local-authority/32UC,Leisure Operations,Swimming Pool(Coronation Wk)H/Castle,Cleaning Contract,21/08/2014,IJ00035835,77.42,ESPO,
East Lindsey District Council,http://statistics.data.gov.uk/id/local-authority/32UC,Development Control,Development Control,Furniture and Equipment,28/08/2014,IJ00035965,19.88,ESPO,
East Lindsey District Council,http://statistics.data.gov.uk/id/local-authority/32UC,Enforcement Team Leader,Planning Enforcement,Stationery,28/08/2014,IJ00035965,6.15,ESPO,
East Lindsey District Council,http://statistics.data.gov.uk/id/local-authority/32UC,Enforcement Team Leader,Land Charges,Stationery,28/08/2014,IJ00035965,3.85,ESPO,
East Lindsey District Council,http://statistics.data.gov.uk/id/local-authority/32UC,Enforcement Team Leader,Licensing General,Stationery,28/08/2014,IJ00035965,138.45,ESPO,
East Lindsey District Council,http://statistics.data.gov.uk/id/local-authority/32UC,Neighbourhood Services,Area Working North,Materials and Consumables,28/08/2014,IJ00035965,775.00,ESPO,
East Lindsey District Council,http://statistics.data.gov.uk/id/local-authority/32UC,Leisure Operations,Embassy Swimming Pool(Skegness),Materials and Consumables,28/08/2014,IJ00035965,163.55,ESPO,
East Lindsey District Council,http://statistics.data.gov.uk/id/local-authority/32UC,Economic & Tourism,Caravan Park (Kingfisher) Ingoldmells,Stationery,28/08/2014,IJ00035965,22.64,ESPO,
East Lindsey District Council,http://statistics.data.gov.uk/id/local-authority/32UC,Leisure Operations,Station Sports Centre,Furniture and Equipment,28/08/2014,IJ00035965,8.82,ESPO,
East Lindsey District Council,http://statistics.data.gov.uk/id/local-authority/32UC,Leisure Operations,Embassy Swimming Pool(Skegness),Furniture and Equipment,28/08/2014,IJ00035965,412.05,ESPO,
East Lindsey District Council,http://statistics.data.gov.uk/id/local-authority/32UC,Leisure Operations,Station Sports Centre,Cleaning Contract,28/08/2014,IJ00035965,199.87,ESPO,
East Lindsey District Council,http://statistics.data.gov.uk/id/local-authority/32UC,Economic & Tourism,ED: General Marketing & Promotion,Stationery,28/08/2014,IJ00035965,21.50,ESPO,
East Lindsey District Council,http://statistics.data.gov.uk/id/local-authority/32UC,Hsg Advice & Homelessness TL,Wellbeing Service,Stationery,28/08/2014,IJ00035965,3.65,ESPO,
East Lindsey District Council,http://statistics.data.gov.uk/id/local-authority/32UC,Corporate Management,Corporate Management,Staff Training Expenses,14/08/2014,IJ00035571,1395.00,CIPFA BUSINESS LIMITED,
East Lindsey District Council,http://statistics.data.gov.uk/id/local-authority/32UC,Hsg Private Sector TL,Private Sector Housing Renovation Grants,Other Income,07/08/2014,IJ00035420,-418.25,PRINCEBUILD LTD,
East Lindsey District Council,http://statistics.data.gov.uk/id/local-authority/32UC,Hsg Private Sector TL,Private Sector Housing Renovation Grants,Grants and Contributions to Outside Bodies- No Service Recei,07/08/2014,IJ00035420,4684.42,PRINCEBUILD LTD,
East Lindsey District Council,http://statistics.data.gov.uk/id/local-authority/32UC,TL Property,Illuminations,Employee Related Schemes,07/08/2014,IJ00035295,522.75,COTTRILLS,
East Lindsey District Council,http://statistics.data.gov.uk/id/local-authority/32UC,Corporate Management,Corporate Management,Professional & Contractors Fees,07/08/2014,IJ00035380,600.00,CHRISTOPHER DONKIN,
East Lindsey District Council,http://statistics.data.gov.uk/id/local-authority/32UC,Corporate Management,Corporate Management,Professional & Contractors Fees,07/08/2014,IJ00035381,650.00,CHRISTOPHER DONKIN,
East Lindsey District Council,http://statistics.data.gov.uk/id/local-authority/32UC,Leisure Operations,Meridian Leisure Centre,Other Miscellaneous Expenses,21/08/2014,IJ00035777,1260.19,DEE BEE,
East Lindsey District Council,http://statistics.data.gov.uk/id/local-authority/32UC,Leisure Operations,Meridian Leisure Centre,Purchase Of Goods For Resale,21/08/2014,IJ00035777,268.52,DEE BEE,
East Lindsey District Council,http://statistics.data.gov.uk/id/local-authority/32UC,Hsg Private Sector TL,Private Sector Housing Renovation Grants,Other Income,21/08/2014,IJ00035823,-964.45,OBAM STAIRLIFTS,
East Lindsey District Council,http://statistics.data.gov.uk/id/local-authority/32UC,Hsg Private Sector TL,Private Sector Housing Renovation Grants,Grants and Contributions to Outside Bodies- No Service Recei,21/08/2014,IJ00035823,10801.84,OBAM STAIRLIFTS,
East Lindsey District Council,http://statistics.data.gov.uk/id/local-authority/32UC,Collection Fund,Collection Fund,Central Share of NDR Income - Government,21/08/2014,IJ00035839,1682948.00,DEPARTMENT FOR COMMUNITIES AND LOCAL,
East Lindsey District Council,http://statistics.data.gov.uk/id/local-authority/32UC,Collection Fund,Collection Fund,Transitional Protection Payments,21/08/2014,IJ00035839,-7816.00,DEPARTMENT FOR COMMUNITIES AND LOCAL,
East Lindsey District Council,http://statistics.data.gov.uk/id/local-authority/32UC,Collection Fund,Collection Fund,Contribution to Deficit (NDR),21/08/2014,IJ00035839,-54688.00,DEPARTMENT FOR COMMUNITIES AND LOCAL,
East Lindsey District Council,http://statistics.data.gov.uk/id/local-authority/32UC,"Performance, Governance & Commissioning",Elections,Staff Training Expenses,21/08/2014,IJ00035683,766.50,ASSOCIATION OF ELECTORAL ADMINISTRATORS,
East Lindsey District Council,http://statistics.data.gov.uk/id/local-authority/32UC,Economic & Tourism,Tourism,Other Miscellaneous Expenses,07/08/2014,IJ00035298,1250.00,LINCOLNSHIRE CHAMBER OF COMMERCE &,
East Lindsey District Council,http://statistics.data.gov.uk/id/local-authority/32UC,Enforcement Team Leader,Removal of Travellers,Other Miscellaneous Expenses,28/08/2014,IJ00035897,3168.00,MAP SECURITY LTD,
East Lindsey District Council,http://statistics.data.gov.uk/id/local-authority/32UC,Enforcement Team Leader,Removal of Travellers,Other Miscellaneous Expenses,28/08/2014,IJ00035898,3168.00,MAP SECURITY LTD,
East Lindsey District Council,http://statistics.data.gov.uk/id/local-authority/32UC,Enforcement Team Leader,Removal of Travellers,Other Miscellaneous Expenses,28/08/2014,IJ00035899,3168.00,MAP SECURITY LTD,
East Lindsey District Council,http://statistics.data.gov.uk/id/local-authority/32UC,Enforcement Team Leader,Removal of Travellers,Other Miscellaneous Expenses,28/08/2014,IJ00035900,3438.00,MAP SECURITY LTD,
East Lindsey District Council,http://statistics.data.gov.uk/id/local-authority/32UC,Enforcement Team Leader,Removal of Travellers,Other Miscellaneous Expenses,28/08/2014,IJ00035901,660.00,MAP SECURITY LTD,
East Lindsey District Council,http://statistics.data.gov.uk/id/local-authority/32UC,Hsg Private Sector TL,Private Sector Housing Renovation Grants,Other Income,14/08/2014,IJ00035573,-513.19,J H A WINTER & SONS LTD,
East Lindsey District Council,http://statistics.data.gov.uk/id/local-authority/32UC,Hsg Private Sector TL,Private Sector Housing Renovation Grants,Grants and Contributions to Outside Bodies- No Service Recei,14/08/2014,IJ00035573,5747.68,J H A WINTER & SONS LTD,
East Lindsey District Council,http://statistics.data.gov.uk/id/local-authority/32UC,Neighbourhood Services,Community Parks & Open Spaces - Neighbourhood Services,Grounds Maintenance Contract (External),28/08/2014,IJ00035875,25813.51,VEOLIA ES (UK) LIMITED,
East Lindsey District Council,http://statistics.data.gov.uk/id/local-authority/32UC,Waste Services Manager,Household & Trade Refuse Coll. General,Maintenance,21/08/2014,IJ00035762,500.00,M J WINDSCREENS LTD,
East Lindsey District Council,http://statistics.data.gov.uk/id/local-authority/32UC,BALANCE  SHEET,Balance Sheet,Payroll-Cons Group Savings,28/08/2014,IJ00035938,560.00,ELDC CONSERVATIVE GROUP,
East Lindsey District Council,http://statistics.data.gov.uk/id/local-authority/32UC,Leisure Operations,Embassy Swimming Pool(Skegness),Purchase Of Goods For Resale,14/08/2014,IJ00035504,1151.77,SRS LEISURE,
East Lindsey District Council,http://statistics.data.gov.uk/id/local-authority/32UC,TL Property,Footway Lighting,Electricity,21/08/2014,IJ00035656,1988.49,E.ON ENERGY,
East Lindsey District Council,http://statistics.data.gov.uk/id/local-authority/32UC,Neighbourhood Services,Community Parks & Open Spaces - Neighbourhood Services,Electricity,21/08/2014,IJ00035656,6.79,E.ON ENERGY,
East Lindsey District Council,http://statistics.data.gov.uk/id/local-authority/32UC,Enforcement Team Leader,Car Parks General,Electricity,21/08/2014,IJ00035656,6.12,E.ON ENERGY,
East Lindsey District Council,http://statistics.data.gov.uk/id/local-authority/32UC,Enforcement Team Leader,Car Parks General,Electricity,21/08/2014,IJ00035656,7.20,E.ON ENERGY,
East Lindsey District Council,http://statistics.data.gov.uk/id/local-authority/32UC,Enforcement Team Leader,Car Parks General,Electricity,21/08/2014,IJ00035656,17.49,E.ON ENERGY,
East Lindsey District Council,http://statistics.data.gov.uk/id/local-authority/32UC,Enforcement Team Leader,Car Parks General,Electricity,21/08/2014,IJ00035656,20.02,E.ON ENERGY,
East Lindsey District Council,http://statistics.data.gov.uk/id/local-authority/32UC,Enforcement Team Leader,Car Parks General,Electricity,21/08/2014,IJ00035656,41.10,E.ON ENERGY,
East Lindsey District Council,http://statistics.data.gov.uk/id/local-authority/32UC,Enforcement Team Leader,Car Parks General,Electricity,21/08/2014,IJ00035656,8.22,E.ON ENERGY,
East Lindsey District Council,http://statistics.data.gov.uk/id/local-authority/32UC,Enforcement Team Leader,Car Parks General,Electricity,21/08/2014,IJ00035656,13.24,E.ON ENERGY,
East Lindsey District Council,http://statistics.data.gov.uk/id/local-authority/32UC,Enforcement Team Leader,Car Parks General,Electricity,21/08/2014,IJ00035656,15.48,E.ON ENERGY,
East Lindsey District Council,http://statistics.data.gov.uk/id/local-authority/32UC,Economic & Tourism,ED: General Marketing & Promotion,Professional & Contractors Fees,21/08/2014,IJ00035800,726.68,FLORAL DECOR,
East Lindsey District Council,http://statistics.data.gov.uk/id/local-authority/32UC,Building Control,Dangerous Buildings,Other Private Contractors,14/08/2014,IJ00035534,1418.30,FOUNDATIONS & BUILDINGS LTD,
East Lindsey District Council,http://statistics.data.gov.uk/id/local-authority/32UC,Cultural & Related Services,Cultural Activities,Professional & Contractors Fees,14/08/2014,IJ00035449,1473.00,TSS EVENTS,
East Lindsey District Council,http://statistics.data.gov.uk/id/local-authority/32UC,Hsg Advice & Homelessness TL,Enabling Activities Housing Development,Grants and Contributions to Outside Bodies- No Service Recei,21/08/2014,IJ00035745,64000.00,WATERLOO HOUSING GROUP LTD,
East Lindsey District Council,http://statistics.data.gov.uk/id/local-authority/32UC,Hsg Advice & Homelessness TL,Enabling Activities Housing Development,Grants and Contributions to Outside Bodies- No Service Recei,21/08/2014,IJ00035746,20000.00,WATERLOO HOUSING GROUP LTD,
East Lindsey District Council,http://statistics.data.gov.uk/id/local-authority/32UC,BALANCE  SHEET,Balance Sheet,Payroll-Gmbatu,28/08/2014,IJ00035949,696.20,GMB NATIONAL ADMINISTRATION UNIT,
East Lindsey District Council,http://statistics.data.gov.uk/id/local-authority/32UC,Economic & Tourism,ED: General Marketing & Promotion,Internet Broadband Payments,07/08/2014,IJ00035317,585.00,MULTIDATA (EUROPE),
East Lindsey District Council,http://statistics.data.gov.uk/id/local-authority/32UC,Economic & Tourism,ED: General Marketing & Promotion,Internet Broadband Payments,07/08/2014,IJ00035317,647.16,MULTIDATA (EUROPE),
East Lindsey District Council,http://statistics.data.gov.uk/id/local-authority/32UC,Leisure Operations,Meridian Leisure Centre,Internet Broadband Payments,07/08/2014,IJ00035317,120.00,MULTIDATA (EUROPE),
East Lindsey District Council,http://statistics.data.gov.uk/id/local-authority/32UC,Enforcement Team Leader,Car Parks General,Payments to Bodies in Respect of Income Collected,14/08/2014,IJ00035544,7133.38,INNES ENGLAND COMMERCIAL PROPERTY,
East Lindsey District Council,http://statistics.data.gov.uk/id/local-authority/32UC,Enforcement Team Leader,Car Parks General,Payments to Bodies in Respect of Income Collected,21/08/2014,IJ00035806,1499.55,INNES ENGLAND COMMERCIAL PROPERTY,
East Lindsey District Council,http://statistics.data.gov.uk/id/local-authority/32UC,Enforcement Team Leader,Car Parks General,Payments to Bodies in Respect of Income Collected,28/08/2014,IJ00035905,1363.30,INNES ENGLAND COMMERCIAL PROPERTY,
East Lindsey District Council,http://statistics.data.gov.uk/id/local-authority/32UC,Information Technology,IT - System Support,Computer Software Licence Costs,07/08/2014,IJ00035315,720.17,IDS,
East Lindsey District Council,http://statistics.data.gov.uk/id/local-authority/32UC,Hsg Private Sector TL,Private Sector Housing Renovation Grants,Other Income,07/08/2014,IJ00035421,-820.19,RODDEN & COOPER,
East Lindsey District Council,http://statistics.data.gov.uk/id/local-authority/32UC,Hsg Private Sector TL,Private Sector Housing Renovation Grants,Grants and Contributions to Outside Bodies- No Service Recei,07/08/2014,IJ00035421,9186.17,RODDEN & COOPER,
East Lindsey District Council,http://statistics.data.gov.uk/id/local-authority/32UC,Hsg Private Sector TL,Private Sector Housing Renovation Grants,Other Income,28/08/2014,IJ00035961,-672.35,RODDEN & COOPER,
East Lindsey District Council,http://statistics.data.gov.uk/id/local-authority/32UC,Hsg Private Sector TL,Private Sector Housing Renovation Grants,Grants and Contributions to Outside Bodies- No Service Recei,28/08/2014,IJ00035961,7530.30,RODDEN & COOPER,
East Lindsey District Council,http://statistics.data.gov.uk/id/local-authority/32UC,Cultural & Related Services,Cultural Activities,Professional & Contractors Fees,21/08/2014,IJ00035826,3019.00,SOUNDSTAGE ONE EVENT SERVICES LIMITED,
East Lindsey District Council,http://statistics.data.gov.uk/id/local-authority/32UC,Cultural & Related Services,Cultural Activities,Performers and Entertainers Fees,28/08/2014,IJ00036000,600.00,LAVA,
East Lindsey District Council,http://statistics.data.gov.uk/id/local-authority/32UC,Development Control,Development Control,Other Private Contractors,14/08/2014,IJ00035483,7241.40,LGS LIMITED,
East Lindsey District Council,http://statistics.data.gov.uk/id/local-authority/32UC,Leisure Operations,Meridian Leisure Centre,Buildings Maintenance - Programmed,21/08/2014,IJ00035674,1500.00,H20 SERVICING LTD,
East Lindsey District Council,http://statistics.data.gov.uk/id/local-authority/32UC,"Performance, Governance & Commissioning",Commissioning & Grants,Grants and Contributions to Outside Bodies- No Service Recei,07/08/2014,IJ00035346,13900.00,EAST LINDSEY CITIZENS ADVICE BUREAU,
East Lindsey District Council,http://statistics.data.gov.uk/id/local-authority/32UC,Neighbourhood Services,Area Working North,Agency Staff,14/08/2014,IJ00035464,3014.50,THE WORKSHOP (WISBECH) LIMITED,
East Lindsey District Council,http://statistics.data.gov.uk/id/local-authority/32UC,Neighbourhood Services,Area Working South,Agency Staff,14/08/2014,IJ00035464,3014.50,THE WORKSHOP (WISBECH) LIMITED,
East Lindsey District Council,http://statistics.data.gov.uk/id/local-authority/32UC,Neighbourhood Services,Area Working North,Agency Staff,14/08/2014,IJ00035465,3104.49,THE WORKSHOP (WISBECH) LIMITED,
East Lindsey District Council,http://statistics.data.gov.uk/id/local-authority/32UC,Neighbourhood Services,Area Working South,Agency Staff,14/08/2014,IJ00035465,3104.48,THE WORKSHOP (WISBECH) LIMITED,
East Lindsey District Council,http://statistics.data.gov.uk/id/local-authority/32UC,Neighbourhood Services,Area Working North,Agency Staff,21/08/2014,IJ00035689,3147.34,THE WORKSHOP (WISBECH) LIMITED,
East Lindsey District Council,http://statistics.data.gov.uk/id/local-authority/32UC,Neighbourhood Services,Area Working South,Agency Staff,21/08/2014,IJ00035689,3147.33,THE WORKSHOP (WISBECH) LIMITED,
East Lindsey District Council,http://statistics.data.gov.uk/id/local-authority/32UC,Neighbourhood Services,Area Working North,Agency Staff,28/08/2014,IJ00035855,2828.10,THE WORKSHOP (WISBECH) LIMITED,
East Lindsey District Council,http://statistics.data.gov.uk/id/local-authority/32UC,Neighbourhood Services,Area Working South,Agency Staff,28/08/2014,IJ00035855,2828.10,THE WORKSHOP (WISBECH) LIMITED,
East Lindsey District Council,http://statistics.data.gov.uk/id/local-authority/32UC,Neighbourhood Services,Area Working North,Agency Staff,28/08/2014,IJ00035925,2723.12,THE WORKSHOP (WISBECH) LIMITED,
East Lindsey District Council,http://statistics.data.gov.uk/id/local-authority/32UC,Neighbourhood Services,Area Working South,Agency Staff,28/08/2014,IJ00035925,2723.12,THE WORKSHOP (WISBECH) LIMITED,
East Lindsey District Council,http://statistics.data.gov.uk/id/local-authority/32UC,Environment Team Leader,Environmental Protection,Professional & Contractors Fees,28/08/2014,IJ00035862,810.00,BUREAU VERITAS UK LTD,
East Lindsey District Council,http://statistics.data.gov.uk/id/local-authority/32UC,Leisure Operations,Meridian Leisure Centre,Professional & Contractors Fees,21/08/2014,IJ00035717,1220.00,REDACTED PERSONAL INFORMATION,REDACTED
East Lindsey District Council,http://statistics.data.gov.uk/id/local-authority/32UC,Customer Services Manager,Tourist Info Centre,Payments to Bodies in Respect of Income Collected,07/08/2014,IJ00035391,1492.48,NATIONAL EXPRESS CREDIT CONTROL DEPT,
East Lindsey District Council,http://statistics.data.gov.uk/id/local-authority/32UC,Customer Services Manager,Tourist Info Centre,Payments to Bodies in Respect of Income Collected,07/08/2014,IJ00035391,1484.70,NATIONAL EXPRESS CREDIT CONTROL DEPT,
East Lindsey District Council,http://statistics.data.gov.uk/id/local-authority/32UC,Customer Services Manager,Tourist Info Centre,Payments to Bodies in Respect of Income Collected,07/08/2014,IJ00035391,424.06,NATIONAL EXPRESS CREDIT CONTROL DEPT,
East Lindsey District Council,http://statistics.data.gov.uk/id/local-authority/32UC,Customer Services Manager,Tourist Info Centre,Payments to Bodies in Respect of Income Collected,07/08/2014,IJ00035391,81.89,NATIONAL EXPRESS CREDIT CONTROL DEPT,
East Lindsey District Council,http://statistics.data.gov.uk/id/local-authority/32UC,Revenues & Benefits,Council Tax,Court Costs,07/08/2014,IJ00035303,1743.00,CENTRAL FINANCE UNIT,
East Lindsey District Council,http://statistics.data.gov.uk/id/local-authority/32UC,Revenues & Benefits,National Non-Domestic Rates,Court Costs,07/08/2014,IJ00035303,147.00,CENTRAL FINANCE UNIT,
East Lindsey District Council,http://statistics.data.gov.uk/id/local-authority/32UC,Customer Services Manager,Tourist Info Centre,Payments to Bodies in Respect of Income Collected,07/08/2014,IJ00035387,1350.05,WOODHALL SPA COTTAGE MUSEUM,
East Lindsey District Council,http://statistics.data.gov.uk/id/local-authority/32UC,"Performance, Governance & Commissioning",Commissioning & Grants,Grants and Contributions to Outside Bodies- No Service Recei,14/08/2014,IJ00035563,2076.00,WOODHALL SPA COTTAGE MUSEUM,
East Lindsey District Council,http://statistics.data.gov.uk/id/local-authority/32UC,Corporate Accounting,Compass Point Business Services,Compass Point Business Services,07/08/2014,IJ00035283,423015.25,COMPASS POINT BUSINESS SERVICES,
East Lindsey District Council,http://statistics.data.gov.uk/id/local-authority/32UC,Hsg Advice & Homelessness TL,Homelessness,Other Employee Expenses,14/08/2014,IJ00035569,44.00,COMPASS POINT BUSINESS SERVICES,
East Lindsey District Council,http://statistics.data.gov.uk/id/local-authority/32UC,Hsg Advice & Homelessness TL,Homelessness,Other Employee Expenses,14/08/2014,IJ00035569,88.00,COMPASS POINT BUSINESS SERVICES,
East Lindsey District Council,http://statistics.data.gov.uk/id/local-authority/32UC,Hsg Private Sector TL,Private Sector Housing Renovation Grants,Other Employee Expenses,14/08/2014,IJ00035569,44.00,COMPASS POINT BUSINESS SERVICES,
East Lindsey District Council,http://statistics.data.gov.uk/id/local-authority/32UC,Theatre Manager,Embassy Centre,Other Employee Expenses,14/08/2014,IJ00035569,225.00,COMPASS POINT BUSINESS SERVICES,
East Lindsey District Council,http://statistics.data.gov.uk/id/local-authority/32UC,Leisure Operations,Embassy Swimming Pool(Skegness),Other Employee Expenses,14/08/2014,IJ00035569,88.00,COMPASS POINT BUSINESS SERVICES,
East Lindsey District Council,http://statistics.data.gov.uk/id/local-authority/32UC,Leisure Operations,Embassy Swimming Pool(Skegness),Other Employee Expenses,14/08/2014,IJ00035569,44.00,COMPASS POINT BUSINESS SERVICES,
East Lindsey District Council,http://statistics.data.gov.uk/id/local-authority/32UC,Hsg Advice & Homelessness TL,Enabling Activities Housing Advice,Other Employee Expenses,14/08/2014,IJ00035569,44.00,COMPASS POINT BUSINESS SERVICES,
East Lindsey District Council,http://statistics.data.gov.uk/id/local-authority/32UC,Hsg Advice & Homelessness TL,Enabling Activities Housing Advice,Other Employee Expenses,14/08/2014,IJ00035569,176.00,COMPASS POINT BUSINESS SERVICES,
East Lindsey District Council,http://statistics.data.gov.uk/id/local-authority/32UC,Cultural & Related Services,Sports Development,Other Employee Expenses,14/08/2014,IJ00035569,44.00,COMPASS POINT BUSINESS SERVICES,
East Lindsey District Council,http://statistics.data.gov.uk/id/local-authority/32UC,"Performance, Governance & Commissioning",Audit,Other Employee Expenses,14/08/2014,IJ00035569,25.00,COMPASS POINT BUSINESS SERVICES,
East Lindsey District Council,http://statistics.data.gov.uk/id/local-authority/32UC,Theatre Manager,Community Parks & Open Spaces - Theatre,Other Employee Expenses,14/08/2014,IJ00035569,25.00,COMPASS POINT BUSINESS SERVICES,
East Lindsey District Council,http://statistics.data.gov.uk/id/local-authority/32UC,Hsg Private Sector TL,Community Safety/CCTV,Other Employee Expenses,14/08/2014,IJ00035569,50.00,COMPASS POINT BUSINESS SERVICES,
East Lindsey District Council,http://statistics.data.gov.uk/id/local-authority/32UC,"Performance, Governance & Commissioning",Elections,Other Employee Expenses,14/08/2014,IJ00035569,25.00,COMPASS POINT BUSINESS SERVICES,
East Lindsey District Council,http://statistics.data.gov.uk/id/local-authority/32UC,TL Property,Public Buildings,Other Employee Expenses,14/08/2014,IJ00035569,44.00,COMPASS POINT BUSINESS SERVICES,
East Lindsey District Council,http://statistics.data.gov.uk/id/local-authority/32UC,Enforcement Team Leader,Land Charges,Other Employee Expenses,14/08/2014,IJ00035569,25.00,COMPASS POINT BUSINESS SERVICES,
East Lindsey District Council,http://statistics.data.gov.uk/id/local-authority/32UC,Environment Team Leader,Environmental Protection,Other Employee Expenses,14/08/2014,IJ00035569,25.00,COMPASS POINT BUSINESS SERVICES,
East Lindsey District Council,http://statistics.data.gov.uk/id/local-authority/32UC,Leisure Operations,Swimming Pool(Coronation Wk)H/Castle,Other Employee Expenses,14/08/2014,IJ00035569,176.00,COMPASS POINT BUSINESS SERVICES,
East Lindsey District Council,http://statistics.data.gov.uk/id/local-authority/32UC,Leisure Operations,Meridian Leisure Centre,Other Employee Expenses,14/08/2014,IJ00035569,220.00,COMPASS POINT BUSINESS SERVICES,
East Lindsey District Council,http://statistics.data.gov.uk/id/local-authority/32UC,Leisure Operations,Meridian Leisure Centre,Other Employee Expenses,14/08/2014,IJ00035569,704.00,COMPASS POINT BUSINESS SERVICES,
East Lindsey District Council,http://statistics.data.gov.uk/id/local-authority/32UC,Leisure Operations,Station Sports Centre,Other Employee Expenses,14/08/2014,IJ00035569,44.00,COMPASS POINT BUSINESS SERVICES,
East Lindsey District Council,http://statistics.data.gov.uk/id/local-authority/32UC,Hsg Advice & Homelessness TL,Enabling Activities Housing Development,Other Employee Expenses,14/08/2014,IJ00035569,44.00,COMPASS POINT BUSINESS SERVICES,
East Lindsey District Council,http://statistics.data.gov.uk/id/local-authority/32UC,Hsg Advice & Homelessness TL,Wellbeing Service,Other Employee Expenses,14/08/2014,IJ00035569,44.00,COMPASS POINT BUSINESS SERVICES,
East Lindsey District Council,http://statistics.data.gov.uk/id/local-authority/32UC,Hsg Advice & Homelessness TL,Wellbeing Service,Other Employee Expenses,14/08/2014,IJ00035569,132.00,COMPASS POINT BUSINESS SERVICES,
East Lindsey District Council,http://statistics.data.gov.uk/id/local-authority/32UC,Hsg Advice & Homelessness TL,Enabling Activities Housing Support,Other Employee Expenses,14/08/2014,IJ00035569,44.00,COMPASS POINT BUSINESS SERVICES,
East Lindsey District Council,http://statistics.data.gov.uk/id/local-authority/32UC,Hsg Advice & Homelessness TL,Enabling Activities Housing Support,Other Employee Expenses,14/08/2014,IJ00035569,44.00,COMPASS POINT BUSINESS SERVICES,
East Lindsey District Council,http://statistics.data.gov.uk/id/local-authority/32UC,Hsg Advice & Homelessness TL,Enabling Activities Housing Support,Other Employee Expenses,14/08/2014,IJ00035569,132.00,COMPASS POINT BUSINESS SERVICES,
East Lindsey District Council,http://statistics.data.gov.uk/id/local-authority/32UC,Hsg Advice & Homelessness TL,Enabling Activities Housing Support,Other Employee Expenses,14/08/2014,IJ00035569,44.00,COMPASS POINT BUSINESS SERVICES,
East Lindsey District Council,http://statistics.data.gov.uk/id/local-authority/32UC,Corporate Accounting,Compass Point Business Services,Compass Point Business Services,28/08/2014,IJ00035994,18340.00,COMPASS POINT BUSINESS SERVICES,
East Lindsey District Council,http://statistics.data.gov.uk/id/local-authority/32UC,Theatre Manager,Embassy Centre,Performers and Entertainers Fees,07/08/2014,IJ00035416,2397.90,QDOS ENTERTAINMENT (PRODUCTIONS) LTD,
East Lindsey District Council,http://statistics.data.gov.uk/id/local-authority/32UC,Theatre Manager,Embassy Centre,Performers and Entertainers Fees,07/08/2014,IJ00035416,-48.00,QDOS ENTERTAINMENT (PRODUCTIONS) LTD,
East Lindsey District Council,http://statistics.data.gov.uk/id/local-authority/32UC,Theatre Manager,Embassy Centre,Performers and Entertainers Fees,28/08/2014,IJ00035988,-40.00,QDOS ENTERTAINMENT (PRODUCTIONS) LTD,
East Lindsey District Council,http://statistics.data.gov.uk/id/local-authority/32UC,Theatre Manager,Embassy Centre,Performers and Entertainers Fees,28/08/2014,IJ00035988,4055.22,QDOS ENTERTAINMENT (PRODUCTIONS) LTD,
East Lindsey District Council,http://statistics.data.gov.uk/id/local-authority/32UC,Theatre Manager,Embassy Centre,Performers and Entertainers Fees,28/08/2014,IJ00035989,-40.00,QDOS ENTERTAINMENT (PRODUCTIONS) LTD,
East Lindsey District Council,http://statistics.data.gov.uk/id/local-authority/32UC,Theatre Manager,Embassy Centre,Performers and Entertainers Fees,28/08/2014,IJ00035989,2645.69,QDOS ENTERTAINMENT (PRODUCTIONS) LTD,
East Lindsey District Council,http://statistics.data.gov.uk/id/local-authority/32UC,Theatre Manager,Embassy Centre,Performers and Entertainers Fees,07/08/2014,IJ00035414,3109.19,MARK ANDREWS PRODUCTIONS,
East Lindsey District Council,http://statistics.data.gov.uk/id/local-authority/32UC,Theatre Manager,Embassy Centre,Performers and Entertainers Fees,07/08/2014,IJ00035414,-90.00,MARK ANDREWS PRODUCTIONS,
East Lindsey District Council,http://statistics.data.gov.uk/id/local-authority/32UC,Theatre Manager,Embassy Centre,Performers and Entertainers Fees,21/08/2014,IJ00035799,1339.92,MARK ANDREWS PRODUCTIONS,
East Lindsey District Council,http://statistics.data.gov.uk/id/local-authority/32UC,Theatre Manager,Embassy Centre,Performers and Entertainers Fees,21/08/2014,IJ00035799,-60.00,MARK ANDREWS PRODUCTIONS,
East Lindsey District Council,http://statistics.data.gov.uk/id/local-authority/32UC,Theatre Manager,Embassy Centre,Performers and Entertainers Fees,21/08/2014,IJ00035803,1148.45,MARK ANDREWS PRODUCTIONS,
East Lindsey District Council,http://statistics.data.gov.uk/id/local-authority/32UC,Theatre Manager,Embassy Centre,Performers and Entertainers Fees,21/08/2014,IJ00035803,-60.00,MARK ANDREWS PRODUCTIONS,
East Lindsey District Council,http://statistics.data.gov.uk/id/local-authority/32UC,Theatre Manager,Embassy Centre,Performers and Entertainers Fees,28/08/2014,IJ00035980,1747.77,MARK ANDREWS PRODUCTIONS,
East Lindsey District Council,http://statistics.data.gov.uk/id/local-authority/32UC,Theatre Manager,Embassy Centre,Performers and Entertainers Fees,28/08/2014,IJ00035980,-60.00,MARK ANDREWS PRODUCTIONS,
East Lindsey District Council,http://statistics.data.gov.uk/id/local-authority/32UC,Economic & Tourism,Caravan Park (Kingfisher) Ingoldmells,Clothing Uniforms And Laundry,07/08/2014,IJ00035287,1534.34,PHS LAUNDRYSERV,
East Lindsey District Council,http://statistics.data.gov.uk/id/local-authority/32UC,Theatre Manager,Embassy Centre,Purchase Of Goods For Resale,07/08/2014,IJ00035365,692.65,MOLSON COORS BREWERS LTD,
East Lindsey District Council,http://statistics.data.gov.uk/id/local-authority/32UC,Hsg Private Sector TL,Private Sector Housing Renovation Grants,Other Income,14/08/2014,IJ00035572,-489.37,HARRIS BUILDING SERVICES,
East Lindsey District Council,http://statistics.data.gov.uk/id/local-authority/32UC,Hsg Private Sector TL,Private Sector Housing Renovation Grants,Grants and Contributions to Outside Bodies- No Service Recei,14/08/2014,IJ00035572,5480.94,HARRIS BUILDING SERVICES,
East Lindsey District Council,http://statistics.data.gov.uk/id/local-authority/32UC,"Performance, Governance & Commissioning",Commissioning & Grants,Grants and Contributions to Outside Bodies- No Service Recei,28/08/2014,IJ00035995,7200.00,GRAINTHORPE & CONISHOLME VILLAGE ASSOC,
East Lindsey District Council,http://statistics.data.gov.uk/id/local-authority/32UC,Neighbourhood Services,Public Conveniences,Buildings Maintenance - Responsive,21/08/2014,IJ00033964,519.75,BELL-CHEM PRODUCTS COMPANY,
East Lindsey District Council,http://statistics.data.gov.uk/id/local-authority/32UC,Neighbourhood Services,Street Scene Improvement & Development,Staff Training Expenses,14/08/2014,IJ00035560,1300.00,LYME TRAINING,
East Lindsey District Council,http://statistics.data.gov.uk/id/local-authority/32UC,Theatre Manager,Embassy Centre,Performers and Entertainers Fees,07/08/2014,IJ00035413,3627.15,DEREK BLOCK CONCERT PROMOTIONS LTD,
East Lindsey District Council,http://statistics.data.gov.uk/id/local-authority/32UC,Theatre Manager,Embassy Centre,Performers and Entertainers Fees,07/08/2014,IJ00035413,-210.00,DEREK BLOCK CONCERT PROMOTIONS LTD,
East Lindsey District Council,http://statistics.data.gov.uk/id/local-authority/32UC,Theatre Manager,Embassy Centre,Postages,07/08/2014,IJ00035413,205.05,DEREK BLOCK CONCERT PROMOTIONS LTD,
East Lindsey District Council,http://statistics.data.gov.uk/id/local-authority/32UC,Theatre Manager,Embassy Centre,Performers and Entertainers Fees,28/08/2014,IJ00035979,7500.00,DEREK BLOCK CONCERT PROMOTIONS LTD,
East Lindsey District Council,http://statistics.data.gov.uk/id/local-authority/32UC,TL Property,PPE Other Land & Buildings,Buildings Maintenance - Responsive,07/08/2014,IJ00035428,1028.74,J TOMLINSON LTD,
East Lindsey District Council,http://statistics.data.gov.uk/id/local-authority/32UC,Building Control,Street Naming,Buildings Maintenance - Responsive,07/08/2014,IJ00035429,101.47,J TOMLINSON LTD,
East Lindsey District Council,http://statistics.data.gov.uk/id/local-authority/32UC,Building Control,Street Naming,Buildings Maintenance - Responsive,07/08/2014,IJ00035429,66.68,J TOMLINSON LTD,
East Lindsey District Council,http://statistics.data.gov.uk/id/local-authority/32UC,Building Control,Street Naming,Buildings Maintenance - Responsive,07/08/2014,IJ00035429,20.96,J TOMLINSON LTD,
East Lindsey District Council,http://statistics.data.gov.uk/id/local-authority/32UC,Building Control,Street Naming,Buildings Maintenance - Responsive,07/08/2014,IJ00035429,57.64,J TOMLINSON LTD,
East Lindsey District Council,http://statistics.data.gov.uk/id/local-authority/32UC,Building Control,Street Naming,Buildings Maintenance - Responsive,07/08/2014,IJ00035429,70.73,J TOMLINSON LTD,
East Lindsey District Council,http://statistics.data.gov.uk/id/local-authority/32UC,Building Control,Street Naming,Buildings Maintenance - Responsive,07/08/2014,IJ00035429,62.58,J TOMLINSON LTD,
East Lindsey District Council,http://statistics.data.gov.uk/id/local-authority/32UC,Building Control,Street Naming,Buildings Maintenance - Responsive,07/08/2014,IJ00035429,76.55,J TOMLINSON LTD,
East Lindsey District Council,http://statistics.data.gov.uk/id/local-authority/32UC,Building Control,Street Naming,Buildings Maintenance - Responsive,07/08/2014,IJ00035429,120.24,J TOMLINSON LTD,
East Lindsey District Council,http://statistics.data.gov.uk/id/local-authority/32UC,TL Property,PPE Other Land & Buildings,Buildings Maintenance - Responsive,07/08/2014,IJ00035430,9905.69,J TOMLINSON LTD,
East Lindsey District Council,http://statistics.data.gov.uk/id/local-authority/32UC,TL Property,Illuminations,Other Miscellaneous Expenses,21/08/2014,IJ00035664,2473.28,J TOMLINSON LTD,
East Lindsey District Council,http://statistics.data.gov.uk/id/local-authority/32UC,TL Property,PPE Other Land & Buildings,Buildings Maintenance - Programmed,21/08/2014,IJ00035665,9565.32,J TOMLINSON LTD,
East Lindsey District Council,http://statistics.data.gov.uk/id/local-authority/32UC,Theatre Manager,Embassy Centre,Buildings Maintenance - Responsive,21/08/2014,IJ00035820,155.19,J TOMLINSON LTD,
East Lindsey District Council,http://statistics.data.gov.uk/id/local-authority/32UC,Theatre Manager,Embassy Centre,Buildings Maintenance - Responsive,21/08/2014,IJ00035820,84.30,J TOMLINSON LTD,
East Lindsey District Council,http://statistics.data.gov.uk/id/local-authority/32UC,Theatre Manager,Embassy Centre,Buildings Maintenance - Responsive,21/08/2014,IJ00035820,63.00,J TOMLINSON LTD,
East Lindsey District Council,http://statistics.data.gov.uk/id/local-authority/32UC,TL Property,Louth Cattle Market,Buildings Maintenance - Responsive,21/08/2014,IJ00035820,53.50,J TOMLINSON LTD,
East Lindsey District Council,http://statistics.data.gov.uk/id/local-authority/32UC,Economic & Tourism,Caravan Park (Kingfisher) Ingoldmells,Buildings Maintenance - Responsive,21/08/2014,IJ00035820,109.01,J TOMLINSON LTD,
East Lindsey District Council,http://statistics.data.gov.uk/id/local-authority/32UC,Economic & Tourism,Caravan Park (Kingfisher) Ingoldmells,Buildings Maintenance - Responsive,21/08/2014,IJ00035820,78.23,J TOMLINSON LTD,
East Lindsey District Council,http://statistics.data.gov.uk/id/local-authority/32UC,Economic & Tourism,Caravan Park (Kingfisher) Ingoldmells,Buildings Maintenance - Responsive,21/08/2014,IJ00035820,42.00,J TOMLINSON LTD,
East Lindsey District Council,http://statistics.data.gov.uk/id/local-authority/32UC,Economic & Tourism,Caravan Park (Kingfisher) Ingoldmells,Buildings Maintenance - Responsive,21/08/2014,IJ00035820,48.29,J TOMLINSON LTD,
East Lindsey District Council,http://statistics.data.gov.uk/id/local-authority/32UC,Leisure Operations,Embassy Swimming Pool(Skegness),Buildings Maintenance - Responsive,21/08/2014,IJ00035820,258.51,J TOMLINSON LTD,
East Lindsey District Council,http://statistics.data.gov.uk/id/local-authority/32UC,Leisure Operations,Embassy Swimming Pool(Skegness),Buildings Maintenance - Responsive,21/08/2014,IJ00035820,298.20,J TOMLINSON LTD,
East Lindsey District Council,http://statistics.data.gov.uk/id/local-authority/32UC,Leisure Operations,Embassy Swimming Pool(Skegness),Buildings Maintenance - Responsive,21/08/2014,IJ00035820,48.17,J TOMLINSON LTD,
East Lindsey District Council,http://statistics.data.gov.uk/id/local-authority/32UC,Leisure Operations,Embassy Swimming Pool(Skegness),Buildings Maintenance - Responsive,21/08/2014,IJ00035820,152.25,J TOMLINSON LTD,
East Lindsey District Council,http://statistics.data.gov.uk/id/local-authority/32UC,Leisure Operations,Embassy Swimming Pool(Skegness),Buildings Maintenance - Responsive,21/08/2014,IJ00035820,20.00,J TOMLINSON LTD,
East Lindsey District Council,http://statistics.data.gov.uk/id/local-authority/32UC,Leisure Operations,Embassy Swimming Pool(Skegness),Buildings Maintenance - Responsive,21/08/2014,IJ00035820,94.50,J TOMLINSON LTD,
East Lindsey District Council,http://statistics.data.gov.uk/id/local-authority/32UC,Leisure Operations,Embassy Swimming Pool(Skegness),Buildings Maintenance - Responsive,21/08/2014,IJ00035820,281.40,J TOMLINSON LTD,
East Lindsey District Council,http://statistics.data.gov.uk/id/local-authority/32UC,Leisure Operations,Embassy Swimming Pool(Skegness),Buildings Maintenance - Responsive,21/08/2014,IJ00035820,29.36,J TOMLINSON LTD,
East Lindsey District Council,http://statistics.data.gov.uk/id/local-authority/32UC,Neighbourhood Services,Community Parks & Open Spaces - Neighbourhood Services,Buildings Maintenance - Responsive,21/08/2014,IJ00035820,69.10,J TOMLINSON LTD,
East Lindsey District Council,http://statistics.data.gov.uk/id/local-authority/32UC,Neighbourhood Services,Community Parks & Open Spaces - Neighbourhood Services,Buildings Maintenance - Responsive,21/08/2014,IJ00035820,33.86,J TOMLINSON LTD,
East Lindsey District Council,http://statistics.data.gov.uk/id/local-authority/32UC,Neighbourhood Services,Community Parks & Open Spaces - Neighbourhood Services,Buildings Maintenance - Responsive,21/08/2014,IJ00035820,20.00,J TOMLINSON LTD,
East Lindsey District Council,http://statistics.data.gov.uk/id/local-authority/32UC,Neighbourhood Services,Community Parks & Open Spaces - Neighbourhood Services,Buildings Maintenance - Responsive,21/08/2014,IJ00035820,78.39,J TOMLINSON LTD,
East Lindsey District Council,http://statistics.data.gov.uk/id/local-authority/32UC,Neighbourhood Services,Community Parks & Open Spaces - Neighbourhood Services,Buildings Maintenance - Responsive,21/08/2014,IJ00035820,78.75,J TOMLINSON LTD,
East Lindsey District Council,http://statistics.data.gov.uk/id/local-authority/32UC,Neighbourhood Services,Community Parks & Open Spaces - Neighbourhood Services,Buildings Maintenance - Responsive,21/08/2014,IJ00035820,115.69,J TOMLINSON LTD,
East Lindsey District Council,http://statistics.data.gov.uk/id/local-authority/32UC,Neighbourhood Services,Community Parks & Open Spaces - Neighbourhood Services,Buildings Maintenance - Responsive,21/08/2014,IJ00035820,21.00,J TOMLINSON LTD,
East Lindsey District Council,http://statistics.data.gov.uk/id/local-authority/32UC,Neighbourhood Services,Community Parks & Open Spaces - Neighbourhood Services,Buildings Maintenance - Responsive,21/08/2014,IJ00035820,522.14,J TOMLINSON LTD,
East Lindsey District Council,http://statistics.data.gov.uk/id/local-authority/32UC,Neighbourhood Services,Community Parks & Open Spaces - Neighbourhood Services,Buildings Maintenance - Responsive,21/08/2014,IJ00035820,83.65,J TOMLINSON LTD,
East Lindsey District Council,http://statistics.data.gov.uk/id/local-authority/32UC,Neighbourhood Services,Community Parks & Open Spaces - Neighbourhood Services,Buildings Maintenance - Responsive,21/08/2014,IJ00035820,34.04,J TOMLINSON LTD,
East Lindsey District Council,http://statistics.data.gov.uk/id/local-authority/32UC,Theatre Manager,Foreshore - Theatre,Buildings Maintenance - Responsive,21/08/2014,IJ00035820,42.27,J TOMLINSON LTD,
East Lindsey District Council,http://statistics.data.gov.uk/id/local-authority/32UC,Theatre Manager,Foreshore - Theatre,Buildings Maintenance - Responsive,21/08/2014,IJ00035820,95.37,J TOMLINSON LTD,
East Lindsey District Council,http://statistics.data.gov.uk/id/local-authority/32UC,Theatre Manager,Foreshore - Theatre,Buildings Maintenance - Responsive,21/08/2014,IJ00035820,172.40,J TOMLINSON LTD,
East Lindsey District Council,http://statistics.data.gov.uk/id/local-authority/32UC,TL Property,Foreshore Skegness,Buildings Maintenance - Responsive,21/08/2014,IJ00035820,47.25,J TOMLINSON LTD,
East Lindsey District Council,http://statistics.data.gov.uk/id/local-authority/32UC,Economic & Tourism,ED: General Marketing & Promotion,Buildings Maintenance - Responsive,21/08/2014,IJ00035820,136.50,J TOMLINSON LTD,
East Lindsey District Council,http://statistics.data.gov.uk/id/local-authority/32UC,Neighbourhood Services,Public Conveniences,Buildings Maintenance - Responsive,21/08/2014,IJ00035820,168.52,J TOMLINSON LTD,
East Lindsey District Council,http://statistics.data.gov.uk/id/local-authority/32UC,TL Property,Public Buildings,Buildings Maintenance - Responsive,21/08/2014,IJ00035820,53.60,J TOMLINSON LTD,
East Lindsey District Council,http://statistics.data.gov.uk/id/local-authority/32UC,TL Property,Public Buildings,Buildings Maintenance - Responsive,21/08/2014,IJ00035820,66.08,J TOMLINSON LTD,
East Lindsey District Council,http://statistics.data.gov.uk/id/local-authority/32UC,TL Property,Public Buildings,Buildings Maintenance - Responsive,21/08/2014,IJ00035820,31.50,J TOMLINSON LTD,
East Lindsey District Council,http://statistics.data.gov.uk/id/local-authority/32UC,TL Property,Public Buildings,Buildings Maintenance - Responsive,21/08/2014,IJ00035820,70.94,J TOMLINSON LTD,
East Lindsey District Council,http://statistics.data.gov.uk/id/local-authority/32UC,TL Property,Public Buildings,Buildings Maintenance - Responsive,21/08/2014,IJ00035820,20.00,J TOMLINSON LTD,
East Lindsey District Council,http://statistics.data.gov.uk/id/local-authority/32UC,TL Property,PPE Other Land & Buildings,Buildings Maintenance - Responsive,21/08/2014,IJ00035820,399.62,J TOMLINSON LTD,
East Lindsey District Council,http://statistics.data.gov.uk/id/local-authority/32UC,TL Property,PPE Other Land & Buildings,Buildings Maintenance - Responsive,21/08/2014,IJ00035820,151.33,J TOMLINSON LTD,
East Lindsey District Council,http://statistics.data.gov.uk/id/local-authority/32UC,TL Property,PPE Other Land & Buildings,Buildings Maintenance - Responsive,21/08/2014,IJ00035820,599.96,J TOMLINSON LTD,
East Lindsey District Council,http://statistics.data.gov.uk/id/local-authority/32UC,TL Property,PPE Other Land & Buildings,Buildings Maintenance - Responsive,21/08/2014,IJ00035820,624.44,J TOMLINSON LTD,
East Lindsey District Council,http://statistics.data.gov.uk/id/local-authority/32UC,TL Property,PPE Other Land & Buildings,Buildings Maintenance - Responsive,21/08/2014,IJ00035820,84.00,J TOMLINSON LTD,
East Lindsey District Council,http://statistics.data.gov.uk/id/local-authority/32UC,TL Property,PPE Other Land & Buildings,Buildings Maintenance - Responsive,21/08/2014,IJ00035820,142.08,J TOMLINSON LTD,
East Lindsey District Council,http://statistics.data.gov.uk/id/local-authority/32UC,TL Property,PPE Other Land & Buildings,Buildings Maintenance - Responsive,21/08/2014,IJ00035820,145.29,J TOMLINSON LTD,
East Lindsey District Council,http://statistics.data.gov.uk/id/local-authority/32UC,TL Property,PPE Other Land & Buildings,Buildings Maintenance - Responsive,21/08/2014,IJ00035820,38.52,J TOMLINSON LTD,
East Lindsey District Council,http://statistics.data.gov.uk/id/local-authority/32UC,TL Property,PPE Other Land & Buildings,Buildings Maintenance - Responsive,21/08/2014,IJ00035820,297.87,J TOMLINSON LTD,
East Lindsey District Council,http://statistics.data.gov.uk/id/local-authority/32UC,TL Property,PPE Other Land & Buildings,Buildings Maintenance - Responsive,21/08/2014,IJ00035820,73.50,J TOMLINSON LTD,
East Lindsey District Council,http://statistics.data.gov.uk/id/local-authority/32UC,TL Property,PPE Other Land & Buildings,Buildings Maintenance - Responsive,21/08/2014,IJ00035820,99.75,J TOMLINSON LTD,
East Lindsey District Council,http://statistics.data.gov.uk/id/local-authority/32UC,TL Property,PPE Other Land & Buildings,Buildings Maintenance - Responsive,21/08/2014,IJ00035820,241.50,J TOMLINSON LTD,
East Lindsey District Council,http://statistics.data.gov.uk/id/local-authority/32UC,TL Property,PPE Other Land & Buildings,Buildings Maintenance - Responsive,21/08/2014,IJ00035820,246.75,J TOMLINSON LTD,
East Lindsey District Council,http://statistics.data.gov.uk/id/local-authority/32UC,TL Property,Public Buildings,Buildings Maintenance - Responsive,21/08/2014,IJ00035820,38.63,J TOMLINSON LTD,
East Lindsey District Council,http://statistics.data.gov.uk/id/local-authority/32UC,Leisure Operations,Meridian Leisure Centre,Buildings Maintenance - Responsive,21/08/2014,IJ00035820,407.41,J TOMLINSON LTD,
East Lindsey District Council,http://statistics.data.gov.uk/id/local-authority/32UC,Leisure Operations,Meridian Leisure Centre,Buildings Maintenance - Responsive,21/08/2014,IJ00035820,163.20,J TOMLINSON LTD,
East Lindsey District Council,http://statistics.data.gov.uk/id/local-authority/32UC,Leisure Operations,Meridian Leisure Centre,Buildings Maintenance - Responsive,21/08/2014,IJ00035820,26.25,J TOMLINSON LTD,
East Lindsey District Council,http://statistics.data.gov.uk/id/local-authority/32UC,Leisure Operations,Meridian Leisure Centre,Buildings Maintenance - Responsive,21/08/2014,IJ00035820,110.25,J TOMLINSON LTD,
East Lindsey District Council,http://statistics.data.gov.uk/id/local-authority/32UC,Leisure Operations,Meridian Leisure Centre,Buildings Maintenance - Responsive,21/08/2014,IJ00035820,73.95,J TOMLINSON LTD,
East Lindsey District Council,http://statistics.data.gov.uk/id/local-authority/32UC,Leisure Operations,Meridian Leisure Centre,Buildings Maintenance - Responsive,21/08/2014,IJ00035820,21.00,J TOMLINSON LTD,
East Lindsey District Council,http://statistics.data.gov.uk/id/local-authority/32UC,Leisure Operations,Meridian Leisure Centre,Buildings Maintenance - Responsive,21/08/2014,IJ00035820,322.34,J TOMLINSON LTD,
East Lindsey District Council,http://statistics.data.gov.uk/id/local-authority/32UC,Leisure Operations,Meridian Leisure Centre,Buildings Maintenance - Responsive,21/08/2014,IJ00035820,420.95,J TOMLINSON LTD,
East Lindsey District Council,http://statistics.data.gov.uk/id/local-authority/32UC,Leisure Operations,Meridian Leisure Centre,Buildings Maintenance - Responsive,21/08/2014,IJ00035820,21.00,J TOMLINSON LTD,
East Lindsey District Council,http://statistics.data.gov.uk/id/local-authority/32UC,Neighbourhood Services,Public Conveniences,Buildings Maintenance - Responsive,21/08/2014,IJ00035820,57.85,J TOMLINSON LTD,
East Lindsey District Council,http://statistics.data.gov.uk/id/local-authority/32UC,Neighbourhood Services,Public Conveniences,Buildings Maintenance - Responsive,21/08/2014,IJ00035820,21.00,J TOMLINSON LTD,
East Lindsey District Council,http://statistics.data.gov.uk/id/local-authority/32UC,Neighbourhood Services,Public Conveniences,Buildings Maintenance - Responsive,21/08/2014,IJ00035820,46.20,J TOMLINSON LTD,
East Lindsey District Council,http://statistics.data.gov.uk/id/local-authority/32UC,TL Property,PPE Other Land & Buildings,Buildings Maintenance - Responsive,21/08/2014,IJ00035820,108.63,J TOMLINSON LTD,
East Lindsey District Council,http://statistics.data.gov.uk/id/local-authority/32UC,TL Property,PPE Other Land & Buildings,Buildings Maintenance - Responsive,21/08/2014,IJ00035820,92.22,J TOMLINSON LTD,
East Lindsey District Council,http://statistics.data.gov.uk/id/local-authority/32UC,TL Property,PPE Other Land & Buildings,Buildings Maintenance - Responsive,21/08/2014,IJ00035820,43.84,J TOMLINSON LTD,
East Lindsey District Council,http://statistics.data.gov.uk/id/local-authority/32UC,Leisure Operations,Swimming Pool(Coronation Wk)H/Castle,Buildings Maintenance - Responsive,21/08/2014,IJ00035820,55.28,J TOMLINSON LTD,
East Lindsey District Council,http://statistics.data.gov.uk/id/local-authority/32UC,Leisure Operations,Swimming Pool(Coronation Wk)H/Castle,Buildings Maintenance - Responsive,21/08/2014,IJ00035820,201.39,J TOMLINSON LTD,
East Lindsey District Council,http://statistics.data.gov.uk/id/local-authority/32UC,Leisure Operations,Swimming Pool(Coronation Wk)H/Castle,Buildings Maintenance - Responsive,21/08/2014,IJ00035820,26.25,J TOMLINSON LTD,
East Lindsey District Council,http://statistics.data.gov.uk/id/local-authority/32UC,Leisure Operations,Swimming Pool(Coronation Wk)H/Castle,Buildings Maintenance - Responsive,21/08/2014,IJ00035820,21.00,J TOMLINSON LTD,
East Lindsey District Council,http://statistics.data.gov.uk/id/local-authority/32UC,Leisure Operations,Swimming Pool(Coronation Wk)H/Castle,Buildings Maintenance - Responsive,21/08/2014,IJ00035820,21.00,J TOMLINSON LTD,
East Lindsey District Council,http://statistics.data.gov.uk/id/local-authority/32UC,Neighbourhood Services,Public Conveniences,Buildings Maintenance - Responsive,21/08/2014,IJ00035820,39.52,J TOMLINSON LTD,
East Lindsey District Council,http://statistics.data.gov.uk/id/local-authority/32UC,Neighbourhood Services,Public Conveniences,Buildings Maintenance - Responsive,21/08/2014,IJ00035820,20.00,J TOMLINSON LTD,
East Lindsey District Council,http://statistics.data.gov.uk/id/local-authority/32UC,Neighbourhood Services,Public Conveniences,Buildings Maintenance - Responsive,21/08/2014,IJ00035820,150.82,J TOMLINSON LTD,
East Lindsey District Council,http://statistics.data.gov.uk/id/local-authority/32UC,Neighbourhood Services,Public Conveniences,Buildings Maintenance - Responsive,21/08/2014,IJ00035820,68.25,J TOMLINSON LTD,
East Lindsey District Council,http://statistics.data.gov.uk/id/local-authority/32UC,Neighbourhood Services,Public Conveniences,Buildings Maintenance - Responsive,21/08/2014,IJ00035820,21.00,J TOMLINSON LTD,
East Lindsey District Council,http://statistics.data.gov.uk/id/local-authority/32UC,TL Property,PPE Other Land & Buildings,Buildings Maintenance - Responsive,21/08/2014,IJ00035820,21.00,J TOMLINSON LTD,
East Lindsey District Council,http://statistics.data.gov.uk/id/local-authority/32UC,TL Property,Public Buildings,Buildings Maintenance - Responsive,21/08/2014,IJ00035820,394.73,J TOMLINSON LTD,
East Lindsey District Council,http://statistics.data.gov.uk/id/local-authority/32UC,TL Property,Public Buildings,Buildings Maintenance - Responsive,21/08/2014,IJ00035820,63.00,J TOMLINSON LTD,
East Lindsey District Council,http://statistics.data.gov.uk/id/local-authority/32UC,Neighbourhood Services,Public Conveniences,Buildings Maintenance - Responsive,21/08/2014,IJ00035820,91.44,J TOMLINSON LTD,
East Lindsey District Council,http://statistics.data.gov.uk/id/local-authority/32UC,Neighbourhood Services,Public Conveniences,Buildings Maintenance - Responsive,21/08/2014,IJ00035820,21.00,J TOMLINSON LTD,
East Lindsey District Council,http://statistics.data.gov.uk/id/local-authority/32UC,Neighbourhood Services,Public Conveniences,Buildings Maintenance - Responsive,21/08/2014,IJ00035820,47.28,J TOMLINSON LTD,
East Lindsey District Council,http://statistics.data.gov.uk/id/local-authority/32UC,Neighbourhood Services,Public Conveniences,Buildings Maintenance - Responsive,21/08/2014,IJ00035820,21.00,J TOMLINSON LTD,
East Lindsey District Council,http://statistics.data.gov.uk/id/local-authority/32UC,Neighbourhood Services,Public Conveniences,Buildings Maintenance - Responsive,21/08/2014,IJ00035820,35.52,J TOMLINSON LTD,
East Lindsey District Council,http://statistics.data.gov.uk/id/local-authority/32UC,Neighbourhood Services,Public Conveniences,Buildings Maintenance - Responsive,21/08/2014,IJ00035820,233.13,J TOMLINSON LTD,
East Lindsey District Council,http://statistics.data.gov.uk/id/local-authority/32UC,Neighbourhood Services,Public Conveniences,Buildings Maintenance - Responsive,21/08/2014,IJ00035820,20.00,J TOMLINSON LTD,
East Lindsey District Council,http://statistics.data.gov.uk/id/local-authority/32UC,Neighbourhood Services,Public Conveniences,Buildings Maintenance - Responsive,21/08/2014,IJ00035820,43.69,J TOMLINSON LTD,
East Lindsey District Council,http://statistics.data.gov.uk/id/local-authority/32UC,Neighbourhood Services,Public Conveniences,Buildings Maintenance - Responsive,21/08/2014,IJ00035820,21.00,J TOMLINSON LTD,
East Lindsey District Council,http://statistics.data.gov.uk/id/local-authority/32UC,Neighbourhood Services,Public Conveniences,Buildings Maintenance - Responsive,21/08/2014,IJ00035820,114.30,J TOMLINSON LTD,
East Lindsey District Council,http://statistics.data.gov.uk/id/local-authority/32UC,Neighbourhood Services,Public Conveniences,Buildings Maintenance - Responsive,21/08/2014,IJ00035820,20.00,J TOMLINSON LTD,
East Lindsey District Council,http://statistics.data.gov.uk/id/local-authority/32UC,TL Property,PPE Other Land & Buildings,Buildings Maintenance - Responsive,21/08/2014,IJ00035820,171.57,J TOMLINSON LTD,
East Lindsey District Council,http://statistics.data.gov.uk/id/local-authority/32UC,TL Property,Depots,Buildings Maintenance - Programmed,21/08/2014,IJ00035820,26.25,J TOMLINSON LTD,
East Lindsey District Council,http://statistics.data.gov.uk/id/local-authority/32UC,Neighbourhood Services,Public Conveniences,Buildings Maintenance - Responsive,21/08/2014,IJ00035820,21.00,J TOMLINSON LTD,
East Lindsey District Council,http://statistics.data.gov.uk/id/local-authority/32UC,Leisure Operations,Station Sports Centre,Buildings Maintenance - Responsive,21/08/2014,IJ00035820,235.56,J TOMLINSON LTD,
East Lindsey District Council,http://statistics.data.gov.uk/id/local-authority/32UC,TL Property,Depots,Buildings Maintenance - Responsive,21/08/2014,IJ00035820,42.77,J TOMLINSON LTD,
East Lindsey District Council,http://statistics.data.gov.uk/id/local-authority/32UC,TL Property,Depots,Buildings Maintenance - Responsive,21/08/2014,IJ00035820,21.00,J TOMLINSON LTD,
East Lindsey District Council,http://statistics.data.gov.uk/id/local-authority/32UC,TL Property,PPE Other Land & Buildings,Buildings Maintenance - Responsive,21/08/2014,IJ00035820,20.00,J TOMLINSON LTD,
East Lindsey District Council,http://statistics.data.gov.uk/id/local-authority/32UC,Enforcement Team Leader,Car Parks General,Buildings Maintenance - Responsive,21/08/2014,IJ00035820,47.25,J TOMLINSON LTD,
East Lindsey District Council,http://statistics.data.gov.uk/id/local-authority/32UC,TL Property,Public Buildings,Buildings Maintenance - Responsive,21/08/2014,IJ00035820,570.11,J TOMLINSON LTD,
East Lindsey District Council,http://statistics.data.gov.uk/id/local-authority/32UC,Enforcement Team Leader,Car Parks General,Buildings Maintenance - Responsive,21/08/2014,IJ00035820,416.51,J TOMLINSON LTD,
East Lindsey District Council,http://statistics.data.gov.uk/id/local-authority/32UC,Leisure Operations,Skegness Bowls,Buildings Maintenance - Responsive,21/08/2014,IJ00035820,56.84,J TOMLINSON LTD,
East Lindsey District Council,http://statistics.data.gov.uk/id/local-authority/32UC,Neighbourhood Services,Public Conveniences,Buildings Maintenance - Responsive,21/08/2014,IJ00035820,21.43,J TOMLINSON LTD,
East Lindsey District Council,http://statistics.data.gov.uk/id/local-authority/32UC,Enforcement Team Leader,Car Parks General,Buildings Maintenance - Responsive,21/08/2014,IJ00035820,29.14,J TOMLINSON LTD,
East Lindsey District Council,http://statistics.data.gov.uk/id/local-authority/32UC,Enforcement Team Leader,Car Parks General,Buildings Maintenance - Responsive,21/08/2014,IJ00035820,55.19,J TOMLINSON LTD,
East Lindsey District Council,http://statistics.data.gov.uk/id/local-authority/32UC,Neighbourhood Services,Public Conveniences,Buildings Maintenance - Responsive,21/08/2014,IJ00035820,67.58,J TOMLINSON LTD,
East Lindsey District Council,http://statistics.data.gov.uk/id/local-authority/32UC,Neighbourhood Services,Public Conveniences,Buildings Maintenance - Responsive,21/08/2014,IJ00035820,111.47,J TOMLINSON LTD,
East Lindsey District Council,http://statistics.data.gov.uk/id/local-authority/32UC,Neighbourhood Services,Public Conveniences,Buildings Maintenance - Responsive,21/08/2014,IJ00035820,45.50,J TOMLINSON LTD,
East Lindsey District Council,http://statistics.data.gov.uk/id/local-authority/32UC,Neighbourhood Services,Public Conveniences,Buildings Maintenance - Responsive,21/08/2014,IJ00035820,31.50,J TOMLINSON LTD,
East Lindsey District Council,http://statistics.data.gov.uk/id/local-authority/32UC,Leisure Operations,Playing Fields(Memorial) Wainfleet Skeg,Buildings Maintenance - Responsive,21/08/2014,IJ00035820,268.29,J TOMLINSON LTD,
East Lindsey District Council,http://statistics.data.gov.uk/id/local-authority/32UC,Neighbourhood Services,Public Conveniences,Buildings Maintenance - Responsive,21/08/2014,IJ00035820,32.67,J TOMLINSON LTD,
East Lindsey District Council,http://statistics.data.gov.uk/id/local-authority/32UC,Neighbourhood Services,Public Conveniences,Buildings Maintenance - Responsive,21/08/2014,IJ00035820,21.00,J TOMLINSON LTD,
East Lindsey District Council,http://statistics.data.gov.uk/id/local-authority/32UC,Neighbourhood Services,Public Conveniences,Buildings Maintenance - Responsive,21/08/2014,IJ00035820,38.34,J TOMLINSON LTD,
East Lindsey District Council,http://statistics.data.gov.uk/id/local-authority/32UC,TL Property,Foreshore Skegness,Buildings Maintenance - Responsive,21/08/2014,IJ00035820,20.00,J TOMLINSON LTD,
East Lindsey District Council,http://statistics.data.gov.uk/id/local-authority/32UC,TL Property,Depots,Buildings Maintenance - Responsive,21/08/2014,IJ00035820,292.74,J TOMLINSON LTD,
East Lindsey District Council,http://statistics.data.gov.uk/id/local-authority/32UC,TL Property,Foreshore Mablethorpe,Buildings Maintenance - Responsive,21/08/2014,IJ00035820,170.44,J TOMLINSON LTD,
East Lindsey District Council,http://statistics.data.gov.uk/id/local-authority/32UC,TL Property,PPE Other Land & Buildings,Buildings Maintenance - Responsive,21/08/2014,IJ00035820,26.25,J TOMLINSON LTD,
East Lindsey District Council,http://statistics.data.gov.uk/id/local-authority/32UC,Neighbourhood Services,Area Working South,Professional & Contractors Fees,28/08/2014,IJ00035933,520.96,CRANBERRY COMPOST PRODUCERS LTD,
East Lindsey District Council,http://statistics.data.gov.uk/id/local-authority/32UC,Neighbourhood Services,Public Conveniences,Water and Sewerage Charges,21/08/2014,IJ00035651,526.24,ANGLIAN WATER,
East Lindsey District Council,http://statistics.data.gov.uk/id/local-authority/32UC,TL Property,Public Buildings,Water and Sewerage Charges,28/08/2014,IJ00035885,1357.40,ANGLIAN WATER,
East Lindsey District Council,http://statistics.data.gov.uk/id/local-authority/32UC,Waste Services Manager,Household & Trade Refuse Coll. General,Materials and Consumables,21/08/2014,IJ00035780,50.00,GRS SIGN CO LTD,
East Lindsey District Council,http://statistics.data.gov.uk/id/local-authority/32UC,Enforcement Team Leader,Car Parks General,Other Miscellaneous Expenses,21/08/2014,IJ00035780,190.20,GRS SIGN CO LTD,
East Lindsey District Council,http://statistics.data.gov.uk/id/local-authority/32UC,Economic & Tourism,Tourism,Other Miscellaneous Expenses,21/08/2014,IJ00035780,51.50,GRS SIGN CO LTD,
East Lindsey District Council,http://statistics.data.gov.uk/id/local-authority/32UC,Neighbourhood Services,Area Working South,Furniture and Equipment,21/08/2014,IJ00035780,64.00,GRS SIGN CO LTD,
East Lindsey District Council,http://statistics.data.gov.uk/id/local-authority/32UC,Economic & Tourism,ED: General Marketing & Promotion,Other Miscellaneous Expenses,21/08/2014,IJ00035780,252.15,GRS SIGN CO LTD,
East Lindsey District Council,http://statistics.data.gov.uk/id/local-authority/32UC,Leisure Operations,Embassy Swimming Pool(Skegness),Other Miscellaneous Expenses,21/08/2014,IJ00035780,11.42,GRS SIGN CO LTD,
East Lindsey District Council,http://statistics.data.gov.uk/id/local-authority/32UC,TL Property,Illuminations,Buildings Maintenance - Programmed,21/08/2014,IJ00035780,40.00,GRS SIGN CO LTD,
East Lindsey District Council,http://statistics.data.gov.uk/id/local-authority/32UC,Neighbourhood Services,Community Parks & Open Spaces - Neighbourhood Services,Buildings Maintenance - Responsive,21/08/2014,IJ00035780,538.60,GRS SIGN CO LTD,
East Lindsey District Council,http://statistics.data.gov.uk/id/local-authority/32UC,Economic & Tourism,ED: General Marketing & Promotion,Other Miscellaneous Expenses,21/08/2014,IJ00035780,45.00,GRS SIGN CO LTD,
East Lindsey District Council,http://statistics.data.gov.uk/id/local-authority/32UC,Customer Services Manager,Tourist Info Centre,Payments to Bodies in Respect of Income Collected,28/08/2014,IJ00035388,706.36,RUSSELLS CIRCUS,
East Lindsey District Council,http://statistics.data.gov.uk/id/local-authority/32UC,"Performance, Governance & Commissioning",Member Services,Grants and Contributions to Outside Bodies- No Service Recei,07/08/2014,IJ00035347,500.00,TRANSITION TOWN LOUTH,
East Lindsey District Council,http://statistics.data.gov.uk/id/local-authority/32UC,Economic & Tourism,ED: General Marketing & Promotion,Cleaning Contract,21/08/2014,IJ00035801,1189.50,EASY CLEAN MARSHCHAPEL LTD,
East Lindsey District Council,http://statistics.data.gov.uk/id/local-authority/32UC,Cultural & Related Services,Cultural Activities,Professional & Contractors Fees,14/08/2014,IJ00035451,1500.00,FIREWORKS INTERNATIONAL,
East Lindsey District Council,http://statistics.data.gov.uk/id/local-authority/32UC,Neighbourhood Services,Area Working South,Materials and Consumables,21/08/2014,IJ00035688,1838.80,NOMIX ENVIRO,
East Lindsey District Council,http://statistics.data.gov.uk/id/local-authority/32UC,Corporate Accounting,Corporate Level Resources,Professional & Contractors Fees,14/08/2014,IJ00035554,993.36,KINGS ARMOURED SECURITY SERVICES LTD,
East Lindsey District Council,http://statistics.data.gov.uk/id/local-authority/32UC,Waste Services Manager,Household & Trade Refuse Coll. General,Telephones,21/08/2014,IJ00035818,10.99,DAISY COMMUNICATIONS LTD,
East Lindsey District Council,http://statistics.data.gov.uk/id/local-authority/32UC,Customer Services Manager,Tourist Info Centre,Telephones,21/08/2014,IJ00035818,44.10,DAISY COMMUNICATIONS LTD,
East Lindsey District Council,http://statistics.data.gov.uk/id/local-authority/32UC,Theatre Manager,Embassy Centre,Telephones,21/08/2014,IJ00035818,54.95,DAISY COMMUNICATIONS LTD,
East Lindsey District Council,http://statistics.data.gov.uk/id/local-authority/32UC,Enforcement Team Leader,Waste Enforcement Officers,Telephones,21/08/2014,IJ00035818,22.50,DAISY COMMUNICATIONS LTD,
East Lindsey District Council,http://statistics.data.gov.uk/id/local-authority/32UC,Hsg Private Sector TL,Houses in Multiple Occupation,Telephones,21/08/2014,IJ00035818,11.02,DAISY COMMUNICATIONS LTD,
East Lindsey District Council,http://statistics.data.gov.uk/id/local-authority/32UC,Enforcement Team Leader,Car Parks General,Telephones,21/08/2014,IJ00035818,10.99,DAISY COMMUNICATIONS LTD,
East Lindsey District Council,http://statistics.data.gov.uk/id/local-authority/32UC,Building Control,Building Control - chargeable,Telephones,21/08/2014,IJ00035818,53.31,DAISY COMMUNICATIONS LTD,
East Lindsey District Council,http://statistics.data.gov.uk/id/local-authority/32UC,TL Property,Property Management,Other Communication Costs,21/08/2014,IJ00035818,10.99,DAISY COMMUNICATIONS LTD,
East Lindsey District Council,http://statistics.data.gov.uk/id/local-authority/32UC,Economic & Tourism,Caravan Park (Kingfisher) Ingoldmells,Telephones,21/08/2014,IJ00035818,28.77,DAISY COMMUNICATIONS LTD,
East Lindsey District Council,http://statistics.data.gov.uk/id/local-authority/32UC,Corporate Management,Corporate Management,Telephones,21/08/2014,IJ00035818,1856.78,DAISY COMMUNICATIONS LTD,
East Lindsey District Council,http://statistics.data.gov.uk/id/local-authority/32UC,TL Property,PPE Other Land & Buildings,Telephones,21/08/2014,IJ00035818,-0.32,DAISY COMMUNICATIONS LTD,
East Lindsey District Council,http://statistics.data.gov.uk/id/local-authority/32UC,Information Technology,IT - System Support,Telephones,21/08/2014,IJ00035818,84.01,DAISY COMMUNICATIONS LTD,
East Lindsey District Council,http://statistics.data.gov.uk/id/local-authority/32UC,Information Technology,IT - System Support,Telephones,21/08/2014,IJ00035818,21.98,DAISY COMMUNICATIONS LTD,
East Lindsey District Council,http://statistics.data.gov.uk/id/local-authority/32UC,Leisure Operations,Meridian Leisure Centre,Telephones,21/08/2014,IJ00035818,148.19,DAISY COMMUNICATIONS LTD,
East Lindsey District Council,http://statistics.data.gov.uk/id/local-authority/32UC,Leisure Operations,London Road Sports Centre,Telephones,21/08/2014,IJ00035818,60.70,DAISY COMMUNICATIONS LTD,
East Lindsey District Council,http://statistics.data.gov.uk/id/local-authority/32UC,Economic & Tourism,ED: General Marketing & Promotion,Telephones,21/08/2014,IJ00035818,378.33,DAISY COMMUNICATIONS LTD,
East Lindsey District Council,http://statistics.data.gov.uk/id/local-authority/32UC,Economic & Tourism,ED: General Marketing & Promotion,Telephones,21/08/2014,IJ00035818,314.98,DAISY COMMUNICATIONS LTD,
East Lindsey District Council,http://statistics.data.gov.uk/id/local-authority/32UC,Leisure Operations,Embassy Swimming Pool(Skegness),Telephones,21/08/2014,IJ00035818,45.06,DAISY COMMUNICATIONS LTD,
East Lindsey District Council,http://statistics.data.gov.uk/id/local-authority/32UC,Leisure Operations,Skegness Bowls,Telephones,21/08/2014,IJ00035818,21.98,DAISY COMMUNICATIONS LTD,
East Lindsey District Council,http://statistics.data.gov.uk/id/local-authority/32UC,Leisure Operations,Swimming Pool(Coronation Wk)H/Castle,Telephones,21/08/2014,IJ00035818,54.92,DAISY COMMUNICATIONS LTD,
East Lindsey District Council,http://statistics.data.gov.uk/id/local-authority/32UC,TL Property,Public Buildings,Telephones,21/08/2014,IJ00035818,10.99,DAISY COMMUNICATIONS LTD,
East Lindsey District Council,http://statistics.data.gov.uk/id/local-authority/32UC,TL Property,Public Buildings,Telephones,21/08/2014,IJ00035818,11.01,DAISY COMMUNICATIONS LTD,
East Lindsey District Council,http://statistics.data.gov.uk/id/local-authority/32UC,TL Property,Public Buildings,Telephones,21/08/2014,IJ00035818,25.26,DAISY COMMUNICATIONS LTD,
East Lindsey District Council,http://statistics.data.gov.uk/id/local-authority/32UC,TL Property,Public Buildings,Telephones,21/08/2014,IJ00035818,10.99,DAISY COMMUNICATIONS LTD,
East Lindsey District Council,http://statistics.data.gov.uk/id/local-authority/32UC,Leisure Operations,Playing Fields(Memorial) Wainfleet Skeg,Telephones,21/08/2014,IJ00035818,23.87,DAISY COMMUNICATIONS LTD,
East Lindsey District Council,http://statistics.data.gov.uk/id/local-authority/32UC,Leisure Operations,Station Sports Centre,Telephones,21/08/2014,IJ00035818,38.47,DAISY COMMUNICATIONS LTD,
East Lindsey District Council,http://statistics.data.gov.uk/id/local-authority/32UC,Neighbourhood Services,Area Working North,Telephones,21/08/2014,IJ00035818,10.99,DAISY COMMUNICATIONS LTD,
East Lindsey District Council,http://statistics.data.gov.uk/id/local-authority/32UC,TL Property,Illuminations,Telephones,21/08/2014,IJ00035818,14.35,DAISY COMMUNICATIONS LTD,
East Lindsey District Council,http://statistics.data.gov.uk/id/local-authority/32UC,TL Property,Property Management,Telephones,21/08/2014,IJ00035818,32.99,DAISY COMMUNICATIONS LTD,
East Lindsey District Council,http://statistics.data.gov.uk/id/local-authority/32UC,Theatre Manager,Foreshore - Theatre,Telephones,21/08/2014,IJ00035818,48.28,DAISY COMMUNICATIONS LTD,
East Lindsey District Council,http://statistics.data.gov.uk/id/local-authority/32UC,TL Property,Public Buildings,Telephones,21/08/2014,IJ00035818,33.03,DAISY COMMUNICATIONS LTD,
East Lindsey District Council,http://statistics.data.gov.uk/id/local-authority/32UC,Economic & Tourism,ED: General Marketing & Promotion,Telephones,21/08/2014,IJ00035818,15.54,DAISY COMMUNICATIONS LTD,
East Lindsey District Council,http://statistics.data.gov.uk/id/local-authority/32UC,Corporate Management,Corporate Management,Telephones,21/08/2014,IJ00035818,11.11,DAISY COMMUNICATIONS LTD,
East Lindsey District Council,http://statistics.data.gov.uk/id/local-authority/32UC,TL Property,PPE Other Land & Buildings,Telephones,21/08/2014,IJ00035818,32.97,DAISY COMMUNICATIONS LTD,
East Lindsey District Council,http://statistics.data.gov.uk/id/local-authority/32UC,Neighbourhood Services,Premises Development - Neighbourhood Services,Telephones,21/08/2014,IJ00035818,10.99,DAISY COMMUNICATIONS LTD,
East Lindsey District Council,http://statistics.data.gov.uk/id/local-authority/32UC,"Performance, Governance & Commissioning",Member Services,Grants and Contributions to Outside Bodies- No Service Recei,14/08/2014,IJ00035538,1000.00,LOUTH LIVING WELL,
East Lindsey District Council,http://statistics.data.gov.uk/id/local-authority/32UC,Cultural & Related Services,Cultural Activities,Other Miscellaneous Expenses,28/08/2014,IJ00035978,650.00,REDACTED PERSONAL INFORMATION,REDACTED
East Lindsey District Council,http://statistics.data.gov.uk/id/local-authority/32UC,Neighbourhood Services,Street Scene Improvement & Development,Clothing Uniforms And Laundry,21/08/2014,IJ00035841,1015.45,SAFETY MANAGEMENT INT GROUP,
East Lindsey District Council,http://statistics.data.gov.uk/id/local-authority/32UC,Leisure Operations,Playing Fields(Memorial) Wainfleet Skeg,Other agencies,14/08/2014,IJ00035548,5000.00,SKEGNESS SPORTS ASSOCIATION,
East Lindsey District Council,http://statistics.data.gov.uk/id/local-authority/32UC,Neighbourhood Services,Arboriculture,Computer Software Licence Costs,14/08/2014,IJ00035457,4340.00,RA INFORMATION SYSTEMS,
East Lindsey District Council,http://statistics.data.gov.uk/id/local-authority/32UC,Information Technology,IT - System Support,Professional & Contractors Fees,07/08/2014,IJ00035314,1875.00,INFRASYS LTD,
East Lindsey District Council,http://statistics.data.gov.uk/id/local-authority/32UC,Theatre Manager,Embassy Centre,Performers and Entertainers Fees,21/08/2014,IJ00035807,2900.57,PRESTIGE PRODUCTIONS LTD,
East Lindsey District Council,http://statistics.data.gov.uk/id/local-authority/32UC,Theatre Manager,Embassy Centre,Performers and Entertainers Fees,21/08/2014,IJ00035807,-450.00,PRESTIGE PRODUCTIONS LTD,
East Lindsey District Council,http://statistics.data.gov.uk/id/local-authority/32UC,Theatre Manager,Embassy Centre,Performers and Entertainers Fees,21/08/2014,IJ00035808,3026.98,PRESTIGE PRODUCTIONS LTD,
East Lindsey District Council,http://statistics.data.gov.uk/id/local-authority/32UC,Theatre Manager,Embassy Centre,Performers and Entertainers Fees,21/08/2014,IJ00035808,-240.00,PRESTIGE PRODUCTIONS LTD,
East Lindsey District Council,http://statistics.data.gov.uk/id/local-authority/32UC,Neighbourhood Services,Premises Development - Neighbourhood Services,Buildings Maintenance - Responsive,21/08/2014,IJ00035639,635.50,XYLEM WATER SOLUTIONS UK LTD,
East Lindsey District Council,http://statistics.data.gov.uk/id/local-authority/32UC,Hsg Private Sector TL,Private Sector Housing Renovation Grants,Other Income,14/08/2014,IJ00035574,-604.08,ANDREW WRISDALE BUILDING CONTRACTOR,
East Lindsey District Council,http://statistics.data.gov.uk/id/local-authority/32UC,Hsg Private Sector TL,Private Sector Housing Renovation Grants,Grants and Contributions to Outside Bodies- No Service Recei,14/08/2014,IJ00035574,6765.72,ANDREW WRISDALE BUILDING CONTRACTOR,
East Lindsey District Council,http://statistics.data.gov.uk/id/local-authority/32UC,"Performance, Governance & Commissioning",Commissioning & Grants,Other agencies,07/08/2014,IJ00035344,9000.00,LINCOLNSHIRE CVS,
East Lindsey District Council,http://statistics.data.gov.uk/id/local-authority/32UC,"Performance, Governance & Commissioning",Commissioning & Grants,Other agencies,07/08/2014,IJ00035345,9000.00,LINCOLNSHIRE CVS,
East Lindsey District Council,http://statistics.data.gov.uk/id/local-authority/32UC,"Performance, Governance & Commissioning",Commissioning & Grants,Other agencies,14/08/2014,IJ00035536,1250.00,LINCOLNSHIRE CVS,
East Lindsey District Council,http://statistics.data.gov.uk/id/local-authority/32UC,Theatre Manager,Embassy Centre,Performers and Entertainers Fees,14/08/2014,IJ00035492,14000.00,CHAMBERS MANAGEMENT TOURING,
East Lindsey District Council,http://statistics.data.gov.uk/id/local-authority/32UC,Neighbourhood Services,Street Scene Improvement & Development,Fuel & Oil,21/08/2014,IJ00035842,25229.06,EMO OIL LIMITED,
East Lindsey District Council,http://statistics.data.gov.uk/id/local-authority/32UC,Waste Services Manager,Household & Trade Refuse Coll. General,Fuel & Oil,21/08/2014,IJ00035837,25229.06,EMO OIL LIMITED,
East Lindsey District Council,http://statistics.data.gov.uk/id/local-authority/32UC,Cultural & Related Services,Cultural Activities,Performers and Entertainers Fees,07/08/2014,IJ00035378,930.00,FOOLS PARADISE LTD,
East Lindsey District Council,http://statistics.data.gov.uk/id/local-authority/32UC,Enforcement Team Leader,Planning Enforcement,Materials and Consumables,28/08/2014,IJ00036005,3290.00,A C PROPERTY MAINTENANCE LTD,
East Lindsey District Council,http://statistics.data.gov.uk/id/local-authority/32UC,Neighbourhood Services,Area Working South,Professional & Contractors Fees,14/08/2014,IJ00035562,1035.00,Front Row Fencing Ltd,
East Lindsey District Council,http://statistics.data.gov.uk/id/local-authority/32UC,TL Property,Property Management,Professional & Contractors Fees,14/08/2014,IJ00035546,562.50,Louth Education Community Interest Company,
East Lindsey District Council,http://statistics.data.gov.uk/id/local-authority/32UC,Cultural & Related Services,Cultural Activities,Professional & Contractors Fees,07/08/2014,IJ00035325,2806.07,British Red Cross Society,
East Lindsey District Council,http://statistics.data.gov.uk/id/local-authority/32UC,Cultural & Related Services,Cultural Activities,Professional & Contractors Fees,28/08/2014,IJ00036002,754.98,British Red Cross Society,
East Lindsey District Council,http://statistics.data.gov.uk/id/local-authority/32UC,Economic & Tourism,Tourism,Grants and Contributions to Outside Bodies- No Service Recei,21/08/2014,IJ00035795,2237.24,Lincolshire Shooting Centre,
East Lindsey District Council,http://statistics.data.gov.uk/id/local-authority/32UC,Cultural & Related Services,Cultural Activities,Other Miscellaneous Expenses,21/08/2014,IJ00035827,5000.00,AMCA Events Limited,
East Lindsey District Council,http://statistics.data.gov.uk/id/local-authority/32UC,Economic & Tourism,ED: General Marketing & Promotion,Other Miscellaneous Expenses,21/08/2014,IJ00035725,962.50,Peter Thorpe Financial Consultant,
East Lindsey District Council,http://statistics.data.gov.uk/id/local-authority/32UC,"Performance, Governance & Commissioning",Elections,Rent and Lease Payments,21/08/2014,IJ00035720,600.00,The Showroom,
East Lindsey District Council,http://statistics.data.gov.uk/id/local-authority/32UC,"Performance, Governance & Commissioning",Member Services,Grants and Contributions to Outside Bodies- No Service Recei,14/08/2014,IJ00035535,600.00,Binbrook Parish Plan Implementation Committee,
East Lindsey District Council,http://statistics.data.gov.uk/id/local-authority/32UC,Enforcement Team Leader,Car Parks General,Fuel & Oil,14/08/2014,IJ00035555,303.01,AllStar Business Solutions Ltd,
East Lindsey District Council,http://statistics.data.gov.uk/id/local-authority/32UC,Neighbourhood Services,Area Working South,Fuel & Oil,14/08/2014,IJ00035555,1764.34,AllStar Business Solutions Ltd,
East Lindsey District Council,http://statistics.data.gov.uk/id/local-authority/32UC,Neighbourhood Services,Area Working North,Fuel & Oil,14/08/2014,IJ00035555,222.35,AllStar Business Solutions Ltd,
East Lindsey District Council,http://statistics.data.gov.uk/id/local-authority/32UC,Neighbourhood Services,Street Scene Improvement & Development,Fuel & Oil,14/08/2014,IJ00035555,101.32,AllStar Business Solutions Ltd,
East Lindsey District Council,http://statistics.data.gov.uk/id/local-authority/32UC,Hsg Advice & Homelessness TL,Homelessness,Fuel & Oil,14/08/2014,IJ00035555,75.07,AllStar Business Solutions Ltd,
East Lindsey District Council,http://statistics.data.gov.uk/id/local-authority/32UC,Neighbourhood Services,Street Cleaning,Fuel & Oil,14/08/2014,IJ00035555,1083.07,AllStar Business Solutions Ltd,
East Lindsey District Council,http://statistics.data.gov.uk/id/local-authority/32UC,Enforcement Team Leader,Car Parks General,Fuel & Oil,14/08/2014,IJ00035556,277.14,AllStar Business Solutions Ltd,
East Lindsey District Council,http://statistics.data.gov.uk/id/local-authority/32UC,Neighbourhood Services,Area Working South,Fuel & Oil,14/08/2014,IJ00035556,2391.92,AllStar Business Solutions Ltd,
East Lindsey District Council,http://statistics.data.gov.uk/id/local-authority/32UC,Neighbourhood Services,Area Working North,Fuel & Oil,14/08/2014,IJ00035556,413.17,AllStar Business Solutions Ltd,
East Lindsey District Council,http://statistics.data.gov.uk/id/local-authority/32UC,TL Property,Property Management,Fuel & Oil,14/08/2014,IJ00035556,67.38,AllStar Business Solutions Ltd,
East Lindsey District Council,http://statistics.data.gov.uk/id/local-authority/32UC,Neighbourhood Services,Street Scene Improvement & Development,Fuel & Oil,14/08/2014,IJ00035556,166.31,AllStar Business Solutions Ltd,
East Lindsey District Council,http://statistics.data.gov.uk/id/local-authority/32UC,Hsg Advice & Homelessness TL,Homelessness,Fuel & Oil,14/08/2014,IJ00035556,75.02,AllStar Business Solutions Ltd,
East Lindsey District Council,http://statistics.data.gov.uk/id/local-authority/32UC,Neighbourhood Services,Street Cleaning,Fuel & Oil,14/08/2014,IJ00035556,733.74,AllStar Business Solutions Ltd,
East Lindsey District Council,http://statistics.data.gov.uk/id/local-authority/32UC,Neighbourhood Services,Street Cleaning,Fuel & Oil,14/08/2014,IJ00035556,5.00,AllStar Business Solutions Ltd,
East Lindsey District Council,http://statistics.data.gov.uk/id/local-authority/32UC,Neighbourhood Services,Street Cleaning,Fuel & Oil,14/08/2014,IJ00035556,40.00,AllStar Business Solutions Ltd,
East Lindsey District Council,http://statistics.data.gov.uk/id/local-authority/32UC,Economic & Tourism,Tourism,Other Miscellaneous Expenses,07/08/2014,IJ00035299,650.00,Accord Group Limited,
East Lindsey District Council,http://statistics.data.gov.uk/id/local-authority/32UC,"Performance, Governance & Commissioning",Register of Electors,External Printing and Design Costs,07/08/2014,IJ00035307,4420.00,Print.UK.com,
East Lindsey District Council,http://statistics.data.gov.uk/id/local-authority/32UC,"Performance, Governance & Commissioning",Elections,Postages,07/08/2014,IJ00035308,942.42,Print.UK.com,
East Lindsey District Council,http://statistics.data.gov.uk/id/local-authority/32UC,"Performance, Governance & Commissioning",Elections,External Printing and Design Costs,07/08/2014,IJ00035309,942.89,Print.UK.com,
East Lindsey District Council,http://statistics.data.gov.uk/id/local-authority/32UC,"Performance, Governance & Commissioning",Elections,Postages,28/08/2014,IJ00035903,26462.88,Print.UK.com,
East Lindsey District Council,http://statistics.data.gov.uk/id/local-authority/32UC,"Performance, Governance & Commissioning",Commissioning & Grants,Grants and Contributions to Outside Bodies- No Service Recei,28/08/2014,IJ00035860,2870.00,HORNCASTLE TOWN FOOTBALL CLUB,
East Lindsey District Council,http://statistics.data.gov.uk/id/local-authority/32UC,Leisure Operations,Meridian Leisure Centre,Buildings Maintenance - Responsive,21/08/2014,IJ00035628,585.00,Sleaford Electrical and Refrigeration Company Ltd,
East Lindsey District Council,http://statistics.data.gov.uk/id/local-authority/32UC,Theatre Manager,Embassy Centre,Performers and Entertainers Fees,14/08/2014,IJ00035495,1500.00,Rivieria Entertainments,
East Lindsey District Council,http://statistics.data.gov.uk/id/local-authority/32UC,Theatre Manager,Embassy Centre,Performers and Entertainers Fees,21/08/2014,IJ00035805,2982.62,Rivieria Entertainments,
East Lindsey District Council,http://statistics.data.gov.uk/id/local-authority/32UC,Theatre Manager,Embassy Centre,Performers and Entertainers Fees,21/08/2014,IJ00035805,-235.00,Rivieria Entertainments,
East Lindsey District Council,http://statistics.data.gov.uk/id/local-authority/32UC,Theatre Manager,Embassy Centre,Postages,21/08/2014,IJ00035805,246.00,Rivieria Entertainments,
East Lindsey District Council,http://statistics.data.gov.uk/id/local-authority/32UC,Theatre Manager,Embassy Centre,Performers and Entertainers Fees,28/08/2014,IJ00035987,5146.69,LMS Worldwide Ltd,
East Lindsey District Council,http://statistics.data.gov.uk/id/local-authority/32UC,Theatre Manager,Embassy Centre,Performers and Entertainers Fees,28/08/2014,IJ00035987,-210.00,LMS Worldwide Ltd,
East Lindsey District Council,http://statistics.data.gov.uk/id/local-authority/32UC,Waste Services Manager,Household & Trade Refuse Coll. General,Commercial Vehicle Lease,21/08/2014,IJ00035757,14962.22,Kier FPS Limited,
East Lindsey District Council,http://statistics.data.gov.uk/id/local-authority/32UC,Waste Services Manager,Markets General,Commercial Vehicle Lease,21/08/2014,IJ00035758,19045.83,Kier FPS Limited,
East Lindsey District Council,http://statistics.data.gov.uk/id/local-authority/32UC,Neighbourhood Services,Street Scene Improvement & Development,Commercial Vehicle Lease,21/08/2014,IJ00035758,-1822.50,Kier FPS Limited,
East Lindsey District Council,http://statistics.data.gov.uk/id/local-authority/32UC,Neighbourhood Services,Area Working North,Fuel & Oil,21/08/2014,IJ00035732,589.43,Fuel Card Services Ltd,
East Lindsey District Council,http://statistics.data.gov.uk/id/local-authority/32UC,Leisure Operations,Leisure Management General,Advertising - Events,21/08/2014,IJ00035620,1300.00,Stuart Wilde Photography Ltd,
East Lindsey District Council,http://statistics.data.gov.uk/id/local-authority/32UC,Leisure Operations,Leisure Management General,Professional & Contractors Fees,14/08/2014,IJ00035588,10938.00,WINCKWORTH SHERWOOD LLP,
East Lindsey District Council,http://statistics.data.gov.uk/id/local-authority/32UC,Cultural & Related Services,Cultural Activities,Staff Travelling Expenses (including Public Transport),14/08/2014,IJ00035581,6293.07,KLH Leisure Ltd,
East Lindsey District Council,http://statistics.data.gov.uk/id/local-authority/32UC,Economic & Tourism,ED: General Marketing & Promotion,Other Miscellaneous Expenses,21/08/2014,IJ00035724,2313.75,Realistic Solutions,
East Lindsey District Council,http://statistics.data.gov.uk/id/local-authority/32UC,Cultural & Related Services,Cultural Activities,Professional & Contractors Fees,07/08/2014,IJ00035384,2500.00,Lorna Fulton,
East Lindsey District Council,http://statistics.data.gov.uk/id/local-authority/32UC,Corporate Management,Corporate Management,Computer Software Purchase,07/08/2014,IJ00035322,815.00,Inform CPI Ltd,
East Lindsey District Council,http://statistics.data.gov.uk/id/local-authority/32UC,Development Control,Development Control,Agency Staff,21/08/2014,IJ00035821,2112.05,REDACTED PERSONAL INFORMATION,REDACTED
East Lindsey District Council,http://statistics.data.gov.uk/id/local-authority/32UC,Development Control,Development Control,Agency Staff,28/08/2014,IJ00035871,1580.10,REDACTED PERSONAL INFORMATION,REDACTED
East Lindsey District Council,http://statistics.data.gov.uk/id/local-authority/32UC,Communications Manager,Public Relations,Professional & Contractors Fees,14/08/2014,IJ00035481,1840.00,GOSS INTERACTIVE LTD,
East Lindsey District Council,http://statistics.data.gov.uk/id/local-authority/32UC,Economic & Tourism,Tourism,Other Miscellaneous Expenses,07/08/2014,IJ00035300,815.38,Exterion Media Limited,
East Lindsey District Council,http://statistics.data.gov.uk/id/local-authority/32UC,Cultural & Related Services,Cultural Activities,Other Miscellaneous Expenses,21/08/2014,IJ00035816,2405.19,Premier Event Marquees,
East Lindsey District Council,http://statistics.data.gov.uk/id/local-authority/32UC,Waste Services Manager,Household & Trade Refuse Coll. General,Agency Staff,14/08/2014,IJ00035454,1759.94,BIBBY FACTORS YORKSHIRE LIMITED,
East Lindsey District Council,http://statistics.data.gov.uk/id/local-authority/32UC,Waste Services Manager,Household & Trade Refuse Coll. General,Agency Staff,14/08/2014,IJ00035576,1495.73,BIBBY FACTORS YORKSHIRE LIMITED,
East Lindsey District Council,http://statistics.data.gov.uk/id/local-authority/32UC,Waste Services Manager,Household & Trade Refuse Coll. General,Agency Staff,21/08/2014,IJ00035736,1648.45,BIBBY FACTORS YORKSHIRE LIMITED,
East Lindsey District Council,http://statistics.data.gov.uk/id/local-authority/32UC,Waste Services Manager,Household & Trade Refuse Coll. General,Agency Staff,28/08/2014,IJ00035937,1932.17,BIBBY FACTORS YORKSHIRE LIMITED,
East Lindsey District Council,http://statistics.data.gov.uk/id/local-authority/32UC,Cultural & Related Services,Cultural Activities,Performers and Entertainers Fees,21/08/2014,IJ00035742,1000.00,TRAVELLING LIGHTS LTD,
East Lindsey District Council,http://statistics.data.gov.uk/id/local-authority/32UC,Cultural & Related Services,Cultural Activities,Professional & Contractors Fees,21/08/2014,IJ00035744,2020.00,D A Technical,
East Lindsey District Council,http://statistics.data.gov.uk/id/local-authority/32UC,Cultural & Related Services,Cultural Activities,Furniture and Equipment,21/08/2014,IJ00035744,2297.32,D A Technical,
East Lindsey District Council,http://statistics.data.gov.uk/id/local-authority/32UC,Cultural & Related Services,Cultural Activities,Staff Travelling Expenses (including Public Transport),21/08/2014,IJ00035744,919.65,D A Technical,
East Lindsey District Council,http://statistics.data.gov.uk/id/local-authority/32UC,Waste Services Manager,Household & Trade Refuse Coll. General,Tyres,07/08/2014,IJ00035374,6213.12,Vacu Lug Traction Tyres Ltd,
East Lindsey District Council,http://statistics.data.gov.uk/id/local-authority/32UC,Waste Services Manager,Household & Trade Refuse Coll. General,Tyres,28/08/2014,IJ00035962,6263.11,Vacu Lug Traction Tyres Ltd,
East Lindsey District Council,http://statistics.data.gov.uk/id/local-authority/32UC,Cultural & Related Services,Cultural Activities,Performers and Entertainers Fees,14/08/2014,IJ00035503,1000.00,REDACTED PERSONAL INFORMATION,REDACTED
East Lindsey District Council,http://statistics.data.gov.uk/id/local-authority/32UC,Environment Team Leader,Environmental Protection,Professional & Contractors Fees,28/08/2014,IJ00035863,1340.90,Reading Agricultural Consultants,
East Lindsey District Council,http://statistics.data.gov.uk/id/local-authority/32UC,Cultural & Related Services,Cultural Activities,Performers and Entertainers Fees,21/08/2014,IJ00035743,1000.00,Dance4 Ltd,
East Lindsey District Council,http://statistics.data.gov.uk/id/local-authority/32UC,"Performance, Governance & Commissioning",Elections,Professional & Contractors Fees,07/08/2014,IJ00035310,1890.00,Dataplan Payroll Ltd,
East Lindsey District Council,http://statistics.data.gov.uk/id/local-authority/32UC,Hsg Private Sector TL,Private Sector Housing Renovation Grants,Grants and Contributions to Outside Bodies- No Service Recei,07/08/2014,IJ00034587,5426.38,REDACTED PERSONAL INFORMATION,REDACTED
East Lindsey District Council,http://statistics.data.gov.uk/id/local-authority/32UC,Hsg Private Sector TL,Private Sector Housing Renovation Grants,Grants and Contributions to Outside Bodies- No Service Recei,14/08/2014,IJ00034588,5443.48,REDACTED PERSONAL INFORMATION,REDACTED
East Lindsey District Council,http://statistics.data.gov.uk/id/local-authority/32UC,Theatre Manager,Embassy Centre,Buildings Maintenance - Programmed,07/08/2014,IJ00035427,2745.19,BRITISH HARLEQUIN PLC,
East Lindsey District Council,http://statistics.data.gov.uk/id/local-authority/32UC,Leisure Operations,Leisure Management General,Advertising - Events,07/08/2014,IJ00035379,2820.00,Fifteen Design Limited,
East Lindsey District Council,http://statistics.data.gov.uk/id/local-authority/32UC,Economic & Tourism,ED: General Marketing & Promotion,Other Miscellaneous Expenses,28/08/2014,IJ00035857,3548.55,Michael A Singh,
East Lindsey District Council,http://statistics.data.gov.uk/id/local-authority/32UC,Hsg Private Sector TL,Private Sector Housing Renovation Grants,Grants and Contributions to Outside Bodies- No Service Recei,07/08/2014,IJ00035422,5130.00,STEVE GUNSON BUILDING CONTRACTOR,
East Lindsey District Council,http://statistics.data.gov.uk/id/local-authority/32UC,Cultural & Related Services,Cultural Activities,Performers and Entertainers Fees,07/08/2014,IJ00035406,547.40,Corey Baker Dance,
East Lindsey District Council,http://statistics.data.gov.uk/id/local-authority/32UC,Hsg Private Sector TL,Private Sector Housing Renovation Grants,Grants and Contributions to Outside Bodies- No Service Recei,07/08/2014,IJ00035423,5353.42,REDACTED PERSONAL INFORMATION,REDACTED
East Lindsey District Council,http://statistics.data.gov.uk/id/local-authority/32UC,Cultural & Related Services,Cultural Activities,Performers and Entertainers Fees,14/08/2014,IJ00035515,640.00,Mattress Circus,
East Lindsey District Council,http://statistics.data.gov.uk/id/local-authority/32UC,Cultural & Related Services,Cultural Activities,Other Miscellaneous Expenses,14/08/2014,IJ00035540,800.00,Skegness Boating Lake,
East Lindsey District Council,http://statistics.data.gov.uk/id/local-authority/32UC,Cultural & Related Services,Cultural Activities,Professional & Contractors Fees,14/08/2014,IJ00035533,11600.00,The Insect Circus,
East Lindsey District Council,http://statistics.data.gov.uk/id/local-authority/32UC,Cultural & Related Services,Cultural Activities,Professional & Contractors Fees,21/08/2014,IJ00035726,1440.00,Wight Fencing Ltd,
East Lindsey District Council,http://statistics.data.gov.uk/id/local-authority/32UC,"Performance, Governance & Commissioning",Member Services,Grants and Contributions to Outside Bodies- No Service Recei,14/08/2014,IJ00035530,900.00,Holton le Clay Cricket Club,
East Lindsey District Council,http://statistics.data.gov.uk/id/local-authority/32UC,Economic & Tourism,ED: General Marketing & Promotion,Other Miscellaneous Expenses,21/08/2014,IJ00035723,566.80,Mr Paul Liller,
East Lindsey District Council,http://statistics.data.gov.uk/id/local-authority/32UC,"Performance, Governance & Commissioning",Member Services,Grants and Contributions to Outside Bodies- No Service Recei,21/08/2014,IJ00035781,1000.00,PCC of Coningsby,
East Lindsey District Council,http://statistics.data.gov.uk/id/local-authority/32UC,Economic & Tourism,ED: General Marketing & Promotion,Other Miscellaneous Expenses,21/08/2014,IJ00035783,500.00,REDACTED PERSONAL INFORMATION,REDACTED
East Lindsey District Council,http://statistics.data.gov.uk/id/local-authority/32UC,Theatre Manager,Embassy Centre,Performers and Entertainers Fees,21/08/2014,IJ00035812,5167.26,A Vision of Elvis,
East Lindsey District Council,http://statistics.data.gov.uk/id/local-authority/32UC,Theatre Manager,Embassy Centre,Performers and Entertainers Fees,21/08/2014,IJ00035812,-210.00,A Vision of Elvis,
East Lindsey District Council,http://statistics.data.gov.uk/id/local-authority/32UC,Cultural & Related Services,Cultural Activities,Performers and Entertainers Fees,21/08/2014,IJ00035786,3500.00,Les Enfants Terribles Theatre Co,
East Lindsey District Council,http://statistics.data.gov.uk/id/local-authority/32UC,Cultural & Related Services,Cultural Activities,Staff Travelling Expenses (including Public Transport),21/08/2014,IJ00035786,717.40,Les Enfants Terribles Theatre Co,
East Lindsey District Council,http://statistics.data.gov.uk/id/local-authority/32UC,Theatre Manager,Embassy Centre,Performers and Entertainers Fees,21/08/2014,IJ00035817,4994.99,Masters Entertainment Corporation Ltd,
East Lindsey District Council,http://statistics.data.gov.uk/id/local-authority/32UC,Theatre Manager,Embassy Centre,Performers and Entertainers Fees,21/08/2014,IJ00035817,-198.80,Masters Entertainment Corporation Ltd,
East Lindsey District Council,http://statistics.data.gov.uk/id/local-authority/32UC,"Performance, Governance & Commissioning",Member Services,Grants and Contributions to Outside Bodies- No Service Recei,28/08/2014,IJ00035974,862.00,Come And Play Toddler Group,
East Lindsey District Council,http://statistics.data.gov.uk/id/local-authority/32UC,BALANCE  SHEET,Balance Sheet,Other Miscellaneous Expenses,28/08/2014,IJ00035998,8633.00,Walkers of Worksop,
